{"text_format":"1","workbook":"xlsx","n_sheets":2,"sheets":["LOG","Info"],"not_rendered":{"charts":0,"images":5,"macros":1,"external_links":0,"defined_names":6,"comments":0,"pivot_tables":0},"unopened":[],"bounds":{"document_bytes":16777216,"sheet_cells":100000,"rows_first":2000,"rows_last":500,"rows_between":2000,"halvings":0,"cell_chars":16384,"cell_head_chars":4096},"cells_cut":0,"cells_raw":0,"read":"whole","date_system":"1900"}

{"sheet":"LOG","index":0,"n_rows":1004,"n_cols":21,"rows_kept":1004,"cut":false,"hidden":false,"merged":[[0,2,0,9],[3,2,3,3],[3,4,3,10],[1,2,1,3],[4,8,4,9],[1,6,1,8],[1,9,1,10],[2,1,2,3],[2,5,2,10],[1,4,1,5]]}
[null,"cbg/2022","   ITALIAN NAVY CONTEST",null,null,null,null,null,null,null,"2022"]
[null,null,{"$f":"IF(M29=1,\"NOMINATIVO DI STAZIONE\",\"STATION'S CALL\")","v":"NOMINATIVO DI STAZIONE"},null,null,null,{"$f":"IF(M29=1,\"NOME OPERATORE\",\"OPERATOR'S NAME\")","v":"NOME OPERATORE"},null,null,null,null,null,null,{"$f":"COUNTA(H7:H506)","v":0},{"$f":"COUNT(H7:H506)","v":0},{"$f":"O2","v":0}]
[null,{"$f":"IF(M29=1,\"CATEGORIA\",\"CATEGORY\")","v":"CATEGORIA"},null,null,"CW",null,null,null,null,null,null,null,null,null,{"$f":"COUNTIF(Q7:Q505,10)","v":0},{"$f":"O3*10","v":0}]
[null,"Scegli -Choose",{"$f":"IF(M29=1,\"scrivi al Manager\",\"write to Manager\")","v":"scrivi al Manager"},null,null,null,null,null,null,null,null,null,null,null,{"$f":"COUNTIF(Q7:Q506,5)","v":0},{"$f":"O4*5","v":0}]
[null,"Italian","QSO'S",{"$f":"N2","v":0},{"$f":"IF(M29=1, \"QSO punti\",\"QSO Pnts\")","v":"QSO punti"},{"$f":"P5","v":0},{"$f":"IF(M29=1,\"Moltiplicat\",\"Multi pl\")","v":"Moltiplicat"},{"$f":"O6","v":0},{"$f":"IF(M29=1,\"PUNTEGGIO\",\"SCORE\")","v":"PUNTEGGIO"},null,{"$f":"P6","v":0},null,null,null,{"$f":"SUM(P7:P600)","v":0},{"$f":"P2+P3+P4","v":0}]
[null,"QSO#",{"$f":"IF(M29=1,\"DATA\",\"DATE\")","v":"DATA"},{"$f":"IF(M29=1,\"ORA (UTC)\",\"TIME (UTC)\")","v":"ORA (UTC)"},{"$f":"IF(M29=1, \"BANDA\",\"BAND\")","v":"BANDA"},{"$f":"IF(M29=1, \"NOMINATIVO\",\"CALL\")","v":"NOMINATIVO"},{"$f":"IF(M29=1,\"RST\",\"RST \")","v":"RST"},{"$f":"IF(M29=1, \"N°Progr./Ass.+N°\",\"Progr.N°/Ass.+N°\")","v":"N°Progr./Ass.+N°"},{"$f":"IF(M29=1,\"FREQ.ZA\",\"FREQ.CY\")","v":"FREQ.ZA"},{"$f":"IF(M29=1, \"MODO\",\"MODE\")","v":"MODO"},{"$f":"IF(M29=1, \"NOTE\",\"NOTES\")","v":"NOTE"},null,null,null,{"$f":"SUM(P7:P1000)","v":0},{"$f":"P5*O6","v":0}]
[null,{"$f":"IF(F7=\"\",\"\",ROW(B1))","v":""},null,null,{"$f":"IF(AND(I7>3499,I7<3801),80,IF(AND(I7>6999,I7<7201),40,IF(AND(I7>13999,I7<14351),20,IF(AND(I7>20999,I7<21451),15,IF(AND(I7>27999,I7<29701),10,\"\")))))","v":""},null,null,null,null,null,null,null,null,{"$f":"IF(LEFT(H7,2)=\"GR\",H7,IF(LEFT(H7,2)=\"CA\",H7,IF(LEFT(H7,2)=\"FN\",H7,IF(LEFT(H7,2)=\"IN\",H7,IF(LEFT(H7,2)=\"MA\",H7,IF(LEFT(H7,2)=\"MF\",H7,IF(LEFT(H7,2)=\"MI\",H7,IF(LEFT(H7,2)=\"RN\",H7,IF(LEFT(H7,2)=\"YO\",H7,IF(LEFT(H7,2)=\"PN\",H7,\"\"))))))))))","v":""},{"$f":"IF(LEFT(H7,2)=\"MI\",COUNTIF(N7:N505,N7))","v":false},{"$f":"IF(O7>=2,0,1)","v":0},{"$f":"IF(LEFT(H7,2)=\"MI\",10,IF(LEFT(H7,2)=\"CA\",5,IF(LEFT(H7,2)=\"FN\",5,IF(LEFT(H7,2)=\"IN\",5,IF(LEFT(H7,2)=\"MA\",5,IF(LEFT(H7,2)=\"MF\",5,IF(LEFT(H7,2)=\"GR\",5,IF(LEFT(H7,2)=\"RN\",5,IF(LEFT(H7,2)=\"YO\",5,IF(LEFT(H7,2)=\"PN\",5,\"\"))))))))))","v":""},null,{"$f":"IF(LEFT(H7,2)=\"MI\",10,IF(LEFT(H7,2)=\"CA\",5,IF(LEFT(H7,2)=\"FN\",5,IF(LEFT(H7,2)=\"IN\",5,IF(LEFT(H7,2)=\"MA\",5,IF(LEFT(H7,2)=\"MF\",5,IF(LEFT(H7,2)=\"GR\",5,IF(LEFT(H7,2)=\"RN\",5,IF(LEFT(H7,2)=\"YO\",5,IF(LEFT(H7,2)=\"PN\",5,\"\"))))))))))","v":""},{"$f":"IF(LEFT(H7,2)=\"MI\",COUNTIF(N7:N505,N7))","v":false},{"$f":"IF(T7>=2,0,1)","v":0}]
[null,{"$f":"IF(F8=\"\",\"\",ROW(B2))","v":""},null,null,"",null,null,null,null,null,null,null,"CW",{"$f":"IF(LEFT(H8,2)=\"GR\",H8,IF(LEFT(H8,2)=\"CA\",H8,IF(LEFT(H8,2)=\"FN\",H8,IF(LEFT(H8,2)=\"IN\",H8,IF(LEFT(H8,2)=\"MA\",H8,IF(LEFT(H8,2)=\"MF\",H8,IF(LEFT(H8,2)=\"MI\",H8,IF(LEFT(H8,2)=\"RN\",H8,IF(LEFT(H8,2)=\"YO\",H8,IF(LEFT(H8,2)=\"PN\",H8,\"\"))))))))))","v":""},{"$f":"IF(LEFT(H8,2)=\"MI\",COUNTIF(N8:N506,N8))","v":false},{"$f":"IF(O8>=2,0,1)","v":0},{"$f":"IF(LEFT(H8,2)=\"MI\",10,IF(LEFT(H8,2)=\"CA\",5,IF(LEFT(H8,2)=\"FN\",5,IF(LEFT(H8,2)=\"IN\",5,IF(LEFT(H8,2)=\"MA\",5,IF(LEFT(H8,2)=\"MF\",5,IF(LEFT(H8,2)=\"GR\",5,IF(LEFT(H8,2)=\"RN\",5,IF(LEFT(H8,2)=\"YO\",5,IF(LEFT(H8,2)=\"PN\",5,\"\"))))))))))","v":""},null,{"$f":"IF(LEFT(H8,2)=\"MI\",10,IF(LEFT(H8,2)=\"CA\",5,IF(LEFT(H8,2)=\"FN\",5,IF(LEFT(H8,2)=\"IN\",5,IF(LEFT(H8,2)=\"MA\",5,IF(LEFT(H8,2)=\"MF\",5,IF(LEFT(H8,2)=\"BM\",5,IF(LEFT(H8,2)=\"RN\",5,IF(LEFT(H8,2)=\"YO\",5,IF(LEFT(H8,2)=\"PN\",5,\"\"))))))))))","v":""},{"$f":"IF(LEFT(H8,2)=\"MI\",COUNTIF(N8:N506,N8))","v":false},{"$f":"IF(T8>=2,0,1)","v":0}]
[null,"",null,null,"",null,null,null,null,null,null,null,"SSB","",false,0,"",null,"",false,0]
[null,"",null,null,"",null,null,null,null,null,null,null,"MIXED","",false,0,"",null,"",false,0]
[null,"",null,null,"",null,null,null,null,null,null,null,null,"",false,0,"",null,"",false,0]
[null,"",null,null,"",null,null,null,null,null,null,null,null,"",false,0,"",null,"",false,0]
[null,"",null,null,"",null,null,null,null,null,null,null,"SSB","",false,0,"",null,"",false,0]
[null,"",null,null,"",null,null,null,null,null,null,null,"CW","",false,0,"",null,{"$f":"IF(LEFT(H14,2)=\"MI\",10,IF(LEFT(H14,2)=\"CA\",5,IF(LEFT(H14,2)=\"FN\",5,IF(LEFT(H14,2)=\"IN\",5,IF(LEFT(H14,2)=\"MA\",5,IF(LEFT(H14,2)=\"MF\",5,IF(LEFT(H14,2)=\"GR\",5,IF(LEFT(H14,2)=\"RN\",5,IF(LEFT(H14,2)=\"YO\",5,IF(LEFT(H14,2)=\"PN\",5,\"\"))))))))))","v":""},false,0]
[null,"",null,null,"",null,null,null,null,null,null,null,null,"",false,0,"",null,"",false,0]
[null,"",null,null,"",null,null,null,null,null,null,null,null,"",false,0,"",null,{"$f":"IF(LEFT(H16,2)=\"MI\",10,IF(LEFT(H16,2)=\"CA\",5,IF(LEFT(H16,2)=\"FN\",5,IF(LEFT(H16,2)=\"IN\",5,IF(LEFT(H16,2)=\"MA\",5,IF(LEFT(H16,2)=\"MF\",5,IF(LEFT(H16,2)=\"BM\",5,IF(LEFT(H16,2)=\"RN\",5,IF(LEFT(H16,2)=\"YO\",5,IF(LEFT(H16,2)=\"PN\",5,\"\"))))))))))","v":""},false,0]
[null,"",null,null,"",null,null,null,null,null,null,null,null,"",false,0,"",null,{"$f":"IF(LEFT(H17,2)=\"MI\",10,IF(LEFT(H17,2)=\"CA\",5,IF(LEFT(H17,2)=\"FN\",5,IF(LEFT(H17,2)=\"IN\",5,IF(LEFT(H17,2)=\"MA\",5,IF(LEFT(H17,2)=\"MF\",5,IF(LEFT(H17,2)=\"BM\",5,IF(LEFT(H17,2)=\"RN\",5,IF(LEFT(H17,2)=\"YO\",5,IF(LEFT(H17,2)=\"PN\",5,\"\"))))))))))","v":""},false,0]
[null,"",null,null,"",null,null,null,null,null,null,null,null,"",false,0,"",null,"",false,0]
[null,"",null,null,"",null,null,null,null,null,null,null,null,"",false,0,"",null,"",false,0]
[null,"",null,null,"",null,null,null,null,null,null,null,null,"",false,0,"",null,"",false,0]
[null,"",null,null,"",null,null,null,null,null,null,null,80,"",false,0,"",null,"",false,0]
[null,"",null,null,"",null,null,null,null,null,null,null,40,"",false,0,"",null,"",false,0]
[null,"",null,null,"",null,null,null,null,null,null,null,20,"",false,0,"",null,"",false,0]
[null,"",null,null,"",null,null,null,null,null,null,null,15,"",false,0,"",null,"",false,0]
[null,"",null,null,"",null,null,null,null,null,null,null,10,"",false,0,"",null,"",false,0]
[null,"",null,null,"",null,null,null,null,null,null,null,null,"",false,0,"",null,"",false,0]
[null,"",null,null,"",null,null,null,null,null,null,null,"Italian","",false,0,""]
[null,"",null,null,"",null,null,null,null,null,null,null,"English","",false,0,""]
[null,"",null,null,"",null,null,null,null,null,null,null,{"$f":"IF(B5=\"italian\",1,2)","v":1},"",false,0,""]
[null,"",null,null,"",null,null,null,null,null,null,null,null,"",false,0,""]
[null,"",null,null,"",null,null,null,null,null,null,null,null,"",false,0,""]
[null,"",null,null,"",null,null,null,null,null,null,null,null,"",false,0,""]
[null,"",null,null,"",null,null,null,null,null,null,null,null,"",false,0,""]
[null,"",null,null,"",null,null,null,null,null,null,null,null,"",false,0,""]
[null,"",null,null,"",null,null,null,null,null,null,null,null,"",false,0,""]
[null,"",null,null,"",null,null,null,null,null,null,null,null,"",false,0,""]
[null,"",null,null,"",null,null,null,null,null,null,null,null,"",false,0,""]
[null,"",null,null,"",null,null,null,null,null,null,null,null,"",false,0,""]
[null,"",null,null,"",null,null,null,null,null,null,null,null,"",false,0,""]
[null,"",null,null,"",null,null,null,null,null,null,null,null,"",false,0,""]
[null,"",null,null,"",null,null,null,null,null,null,null,null,"",false,0,""]
[null,"",null,null,"",null,null,null,null,null,null,null,null,"",false,0,""]
[null,"",null,null,"",null,null,null,null,null,null,null,null,"",false,0,""]
[null,"",null,null,"",null,null,null,null,null,null,null,null,"",false,0,""]
[null,"",null,null,{"$f":"IF(AND(I45>3499,I45<3801),80,IF(AND(I45>6999,I45<7201),40,IF(AND(I45>13999,I45<14351),20,IF(AND(I45>20999,I45<21451),15,IF(AND(I45>27999,I45<29701),10,\"\")))))","v":""},null,null,null,null,null,null,null,null,"",false,0,""]
[null,"",null,null,"",null,null,null,null,null,null,null,null,"",false,0,""]
[null,"",null,null,"",null,null,null,null,null,null,null,null,"",false,0,""]
[null,"",null,null,"",null,null,null,null,null,null,null,null,"",false,0,""]
[null,"",null,null,"",null,null,null,null,null,null,null,null,"",false,0,""]
[null,"",null,null,"",null,null,null,null,null,null,null,null,"",false,0,""]
[null,"",null,null,"",null,null,null,null,null,null,null,null,"",false,0,""]
[null,"",null,null,"",null,null,null,null,null,null,null,null,"",false,0,""]
[null,"",null,null,"",null,null,null,null,null,null,null,null,"",false,0,""]
[null,"",null,null,"",null,null,null,null,null,null,null,null,"",false,0,""]
[null,"",null,null,"",null,null,null,null,null,null,null,null,"",false,0,""]
[null,"",null,null,"",null,null,null,null,null,null,null,null,"",false,0,""]
[null,"",null,null,"",null,null,null,null,null,null,null,null,"",false,0,""]
[null,"",null,null,"",null,null,null,null,null,null,null,null,"",false,0,""]
[null,"",null,null,"",null,null,null,null,null,null,null,null,"",false,0,""]
[null,"",null,null,"",null,null,null,null,null,null,null,null,"",false,0,""]
[null,"",null,null,"",null,null,null,null,null,null,null,null,"",false,0,""]
[null,"",null,null,"",null,null,null,null,null,null,null,null,"",false,0,""]
[null,"",null,null,"",null,null,null,null,null,null,null,null,"",false,0,""]
[null,"",null,null,"",null,null,null,null,null,null,null,null,"",false,0,""]
[null,"",null,null,"",null,null,null,null,null,null,null,null,"",false,0,""]
[null,"",null,null,"",null,null,null,null,null,null,null,null,"",false,0,""]
[null,"",null,null,"",null,null,null,null,null,null,null,null,"",false,0,""]
[null,"",null,null,"",null,null,null,null,null,null,null,null,"",false,0,""]
[null,"",null,null,"",null,null,null,null,null,null,null,null,"",false,0,""]
[null,"",null,null,"",null,null,null,null,null,null,null,null,"",false,0,""]
[null,"",null,null,"",null,null,null,null,null,null,null,null,"",false,0,""]
[null,{"$f":"IF(F72=\"\",\"\",ROW(B66))","v":""},null,null,{"$f":"IF(AND(I72>3499,I72<3801),80,IF(AND(I72>6999,I72<7201),40,IF(AND(I72>13999,I72<14351),20,IF(AND(I72>20999,I72<21451),15,IF(AND(I72>27999,I72<29701),10,\"\")))))","v":""},null,null,null,null,null,null,null,null,{"$f":"IF(LEFT(H72,2)=\"GR\",H72,IF(LEFT(H72,2)=\"CA\",H72,IF(LEFT(H72,2)=\"FN\",H72,IF(LEFT(H72,2)=\"IN\",H72,IF(LEFT(H72,2)=\"MA\",H72,IF(LEFT(H72,2)=\"MF\",H72,IF(LEFT(H72,2)=\"MI\",H72,IF(LEFT(H72,2)=\"RN\",H72,IF(LEFT(H72,2)=\"YO\",H72,IF(LEFT(H72,2)=\"PN\",H72,\"\"))))))))))","v":""},{"$f":"IF(LEFT(H72,2)=\"MI\",COUNTIF(N72:N570,N72))","v":false},{"$f":"IF(O72>=2,0,1)","v":0},{"$f":"IF(LEFT(H72,2)=\"MI\",10,IF(LEFT(H72,2)=\"CA\",5,IF(LEFT(H72,2)=\"FN\",5,IF(LEFT(H72,2)=\"IN\",5,IF(LEFT(H72,2)=\"MA\",5,IF(LEFT(H72,2)=\"MF\",5,IF(LEFT(H72,2)=\"GR\",5,IF(LEFT(H72,2)=\"RN\",5,IF(LEFT(H72,2)=\"YO\",5,IF(LEFT(H72,2)=\"PN\",5,\"\"))))))))))","v":""}]
[null,"",null,null,"",null,null,null,null,null,null,null,null,"",false,0,""]
[null,"",null,null,"",null,null,null,null,null,null,null,null,"",false,0,""]
[null,"",null,null,"",null,null,null,null,null,null,null,null,"",false,0,""]
[null,"",null,null,"",null,null,null,null,null,null,null,null,"",false,0,""]
[null,"",null,null,"",null,null,null,null,null,null,null,null,"",false,0,""]
[null,"",null,null,"",null,null,null,null,null,null,null,null,"",false,0,""]
[null,"",null,null,"",null,null,null,null,null,null,null,null,"",false,0,""]
[null,"",null,null,"",null,null,null,null,null,null,null,null,"",false,0,""]
[null,"",null,null,"",null,null,null,null,null,null,null,null,"",false,0,""]
[null,"",null,null,"",null,null,null,null,null,null,null,null,"",false,0,""]
[null,"",null,null,"",null,null,null,null,null,null,null,null,"",false,0,""]
[null,"",null,null,"",null,null,null,null,null,null,null,null,"",false,0,""]
[null,"",null,null,"",null,null,null,null,null,null,null,null,"",false,0,""]
[null,"",null,null,"",null,null,null,null,null,null,null,null,"",false,0,""]
[null,"",null,null,"",null,null,null,null,null,null,null,null,"",false,0,""]
[null,"",null,null,"",null,null,null,null,null,null,null,null,"",false,0,""]
[null,"",null,null,"",null,null,null,null,null,null,null,null,"",false,0,""]
[null,"",null,null,"",null,null,null,null,null,null,null,null,"",false,0,""]
[null,"",null,null,"",null,null,null,null,null,null,null,null,"",false,0,""]
[null,"",null,null,"",null,null,null,null,null,null,null,null,"",false,0,""]
[null,"",null,null,"",null,null,null,null,null,null,null,null,"",false,0,""]
[null,"",null,null,"",null,null,null,null,null,null,null,null,"",false,0,""]
[null,"",null,null,"",null,null,null,null,null,null,null,null,"",false,0,""]
[null,"",null,null,"",null,null,null,null,null,null,null,null,"",false,0,""]
[null,"",null,null,"",null,null,null,null,null,null,null,null,"",false,0,""]
[null,"",null,null,"",null,null,null,null,null,null,null,null,"",false,0,""]
[null,"",null,null,"",null,null,null,null,null,null,null,null,"",false,0,""]
[null,"",null,null,"",null,null,null,null,null,null,null,null,"",false,0,""]
[null,"",null,null,"",null,null,null,null,null,null,null,null,"",false,0,""]
[null,"",null,null,"",null,null,null,null,null,null,null,null,"",false,0,""]
[null,"",null,null,"",null,null,null,null,null,null,null,null,"",false,0,""]
[null,"",null,null,"",null,null,null,null,null,null,null,null,"",false,0,""]
[null,"",null,null,"",null,null,null,null,null,null,null,null,"",false,0,""]
[null,"",null,null,"",null,null,null,null,null,null,null,null,"",false,0,""]
[null,"",null,null,"",null,null,null,null,null,null,null,null,"",false,0,""]
[null,"",null,null,"",null,null,null,null,null,null,null,null,"",false,0,""]
[null,"",null,null,"",null,null,null,null,null,null,null,null,"",false,0,""]
[null,"",null,null,"",null,null,null,null,null,null,null,null,"",false,0,""]
[null,"",null,null,"",null,null,null,null,null,null,null,null,"",false,0,""]
[null,"",null,null,"",null,null,null,null,null,null,null,null,"",false,0,""]
[null,"",null,null,"",null,null,null,null,null,null,null,null,"",false,0,""]
[null,"",null,null,"",null,null,null,null,null,null,null,null,"",false,0,""]
[null,"",null,null,"",null,null,null,null,null,null,null,null,"",false,0,""]
[null,"",null,null,"",null,null,null,null,null,null,null,null,"",false,0,""]
[null,"",null,null,"",null,null,null,null,null,null,null,null,"",false,0,""]
[null,"",null,null,"",null,null,null,null,null,null,null,null,"",false,0,""]
[null,"",null,null,"",null,null,null,null,null,null,null,null,"",false,0,""]
[null,"",null,null,"",null,null,null,null,null,null,null,null,"",false,0,""]
[null,"",null,null,"",null,null,null,null,null,null,null,null,"",false,0,""]
[null,"",null,null,"",null,null,null,null,null,null,null,null,"",false,0,""]
[null,"",null,null,"",null,null,null,null,null,null,null,null,"",false,0,""]
[null,"",null,null,"",null,null,null,null,null,null,null,null,"",false,0,""]
[null,"",null,null,"",null,null,null,null,null,null,null,null,"",false,0,""]
[null,"",null,null,"",null,null,null,null,null,null,null,null,"",false,0,""]
[null,"",null,null,"",null,null,null,null,null,null,null,null,"",false,0,""]
[null,"",null,null,"",null,null,null,null,null,null,null,null,"",false,0,""]
[null,"",null,null,"",null,null,null,null,null,null,null,null,"",false,0,""]
[null,"",null,null,"",null,null,null,null,null,null,null,null,"",false,0,""]
[null,"",null,null,"",null,null,null,null,null,null,null,null,"",false,0,""]
[null,"",null,null,"",null,null,null,null,null,null,null,null,"",false,0,""]
[null,"",null,null,"",null,null,null,null,null,null,null,null,"",false,0,""]
[null,"",null,null,"",null,null,null,null,null,null,null,null,"",false,0,""]
[null,"",null,null,"",null,null,null,null,null,null,null,null,"",false,0,""]
[null,{"$f":"IF(F136=\"\",\"\",ROW(B130))","v":""},null,null,{"$f":"IF(AND(I136>3499,I136<3801),80,IF(AND(I136>6999,I136<7201),40,IF(AND(I136>13999,I136<14351),20,IF(AND(I136>20999,I136<21451),15,IF(AND(I136>27999,I136<29701),10,\"\")))))","v":""},null,null,null,null,null,null,null,null,{"$f":"IF(LEFT(H136,2)=\"GR\",H136,IF(LEFT(H136,2)=\"CA\",H136,IF(LEFT(H136,2)=\"FN\",H136,IF(LEFT(H136,2)=\"IN\",H136,IF(LEFT(H136,2)=\"MA\",H136,IF(LEFT(H136,2)=\"MF\",H136,IF(LEFT(H136,2)=\"MI\",H136,IF(LEFT(H136,2)=\"RN\",H136,IF(LEFT(H136,2)=\"YO\",H136,IF(LEFT(H136,2)=\"PN\",H136,\"\"))))))))))","v":""},{"$f":"IF(LEFT(H136,2)=\"MI\",COUNTIF(N136:N634,N136))","v":false},{"$f":"IF(O136>=2,0,1)","v":0},{"$f":"IF(LEFT(H136,2)=\"MI\",10,IF(LEFT(H136,2)=\"CA\",5,IF(LEFT(H136,2)=\"FN\",5,IF(LEFT(H136,2)=\"IN\",5,IF(LEFT(H136,2)=\"MA\",5,IF(LEFT(H136,2)=\"MF\",5,IF(LEFT(H136,2)=\"GR\",5,IF(LEFT(H136,2)=\"RN\",5,IF(LEFT(H136,2)=\"YO\",5,IF(LEFT(H136,2)=\"PN\",5,\"\"))))))))))","v":""}]
[null,"",null,null,"",null,null,null,null,null,null,null,null,"",false,0,""]
[null,"",null,null,"",null,null,null,null,null,null,null,null,"",false,0,""]
[null,"",null,null,"",null,null,null,null,null,null,null,null,"",false,0,""]
[null,"",null,null,"",null,null,null,null,null,null,null,null,"",false,0,""]
[null,"",null,null,"",null,null,null,null,null,null,null,null,"",false,0,""]
[null,"",null,null,"",null,null,null,null,null,null,null,null,"",false,0,""]
[null,"",null,null,"",null,null,null,null,null,null,null,null,"",false,0,""]
[null,"",null,null,"",null,null,null,null,null,null,null,null,"",false,0,""]
[null,"",null,null,"",null,null,null,null,null,null,null,null,"",false,0,""]
[null,"",null,null,"",null,null,null,null,null,null,null,null,"",false,0,""]
[null,"",null,null,"",null,null,null,null,null,null,null,null,"",false,0,""]
[null,"",null,null,"",null,null,null,null,null,null,null,null,"",false,0,""]
[null,"",null,null,"",null,null,null,null,null,null,null,null,"",false,0,""]
[null,"",null,null,"",null,null,null,null,null,null,null,null,"",false,0,""]
[null,"",null,null,"",null,null,null,null,null,null,null,null,"",false,0,""]
[null,"",null,null,"",null,null,null,null,null,null,null,null,"",false,0,""]
[null,"",null,null,"",null,null,null,null,null,null,null,null,"",false,0,""]
[null,"",null,null,"",null,null,null,null,null,null,null,null,"",false,0,""]
[null,"",null,null,"",null,null,null,null,null,null,null,null,"",false,0,""]
[null,"",null,null,"",null,null,null,null,null,null,null,null,"",false,0,""]
[null,"",null,null,"",null,null,null,null,null,null,null,null,"",false,0,""]
[null,"",null,null,"",null,null,null,null,null,null,null,null,"",false,0,""]
[null,"",null,null,"",null,null,null,null,null,null,null,null,"",false,0,""]
[null,"",null,null,"",null,null,null,null,null,null,null,null,"",false,0,""]
[null,"",null,null,"",null,null,null,null,null,null,null,null,"",false,0,""]
[null,"",null,null,"",null,null,null,null,null,null,null,null,"",false,0,""]
[null,"",null,null,"",null,null,null,null,null,null,null,null,"",false,0,""]
[null,"",null,null,"",null,null,null,null,null,null,null,null,"",false,0,""]
[null,"",null,null,"",null,null,null,null,null,null,null,null,"",false,0,""]
[null,"",null,null,"",null,null,null,null,null,null,null,null,"",false,0,""]
[null,"",null,null,"",null,null,null,null,null,null,null,null,"",false,0,""]
[null,"",null,null,"",null,null,null,null,null,null,null,null,"",false,0,""]
[null,"",null,null,"",null,null,null,null,null,null,null,null,"",false,0,""]
[null,"",null,null,"",null,null,null,null,null,null,null,null,"",false,0,""]
[null,"",null,null,"",null,null,null,null,null,null,null,null,"",false,0,""]
[null,"",null,null,"",null,null,null,null,null,null,null,null,"",false,0,""]
[null,"",null,null,"",null,null,null,null,null,null,null,null,"",false,0,""]
[null,"",null,null,"",null,null,null,null,null,null,null,null,"",false,0,""]
[null,"",null,null,"",null,null,null,null,null,null,null,null,"",false,0,""]
[null,"",null,null,"",null,null,null,null,null,null,null,null,"",false,0,""]
[null,"",null,null,"",null,null,null,null,null,null,null,null,"",false,0,""]
[null,"",null,null,"",null,null,null,null,null,null,null,null,"",false,0,""]
[null,"",null,null,"",null,null,null,null,null,null,null,null,"",false,0,""]
[null,"",null,null,"",null,null,null,null,null,null,null,null,"",false,0,""]
[null,"",null,null,"",null,null,null,null,null,null,null,null,"",false,0,""]
[null,"",null,null,"",null,null,null,null,null,null,null,null,"",false,0,""]
[null,"",null,null,"",null,null,null,null,null,null,null,null,"",false,0,""]
[null,"",null,null,"",null,null,null,null,null,null,null,null,"",false,0,""]
[null,"",null,null,"",null,null,null,null,null,null,null,null,"",false,0,""]
[null,"",null,null,"",null,null,null,null,null,null,null,null,"",false,0,""]
[null,"",null,null,"",null,null,null,null,null,null,null,null,"",false,0,""]
[null,"",null,null,"",null,null,null,null,null,null,null,null,"",false,0,""]
[null,"",null,null,"",null,null,null,null,null,null,null,null,"",false,0,""]
[null,"",null,null,"",null,null,null,null,null,null,null,null,"",false,0,""]
[null,"",null,null,"",null,null,null,null,null,null,null,null,"",false,0,""]
[null,"",null,null,"",null,null,null,null,null,null,null,null,"",false,0,""]
[null,"",null,null,"",null,null,null,null,null,null,null,null,"",false,0,""]
[null,"",null,null,"",null,null,null,null,null,null,null,null,"",false,0,""]
[null,"",null,null,"",null,null,null,null,null,null,null,null,"",false,0,""]
[null,"",null,null,"",null,null,null,null,null,null,null,null,"",false,0,""]
[null,"",null,null,"",null,null,null,null,null,null,null,null,"",false,0,""]
[null,"",null,null,"",null,null,null,null,null,null,null,null,"",false,0,""]
[null,"",null,null,"",null,null,null,null,null,null,null,null,"",false,0,""]
[null,{"$f":"IF(F200=\"\",\"\",ROW(B194))","v":""},null,null,{"$f":"IF(AND(I200>3499,I200<3801),80,IF(AND(I200>6999,I200<7201),40,IF(AND(I200>13999,I200<14351),20,IF(AND(I200>20999,I200<21451),15,IF(AND(I200>27999,I200<29701),10,\"\")))))","v":""},null,null,null,null,null,null,null,null,{"$f":"IF(LEFT(H200,2)=\"GR\",H200,IF(LEFT(H200,2)=\"CA\",H200,IF(LEFT(H200,2)=\"FN\",H200,IF(LEFT(H200,2)=\"IN\",H200,IF(LEFT(H200,2)=\"MA\",H200,IF(LEFT(H200,2)=\"MF\",H200,IF(LEFT(H200,2)=\"MI\",H200,IF(LEFT(H200,2)=\"RN\",H200,IF(LEFT(H200,2)=\"YO\",H200,IF(LEFT(H200,2)=\"PN\",H200,\"\"))))))))))","v":""},{"$f":"IF(LEFT(H200,2)=\"MI\",COUNTIF(N200:N698,N200))","v":false},{"$f":"IF(O200>=2,0,1)","v":0},{"$f":"IF(LEFT(H200,2)=\"MI\",10,IF(LEFT(H200,2)=\"CA\",5,IF(LEFT(H200,2)=\"FN\",5,IF(LEFT(H200,2)=\"IN\",5,IF(LEFT(H200,2)=\"MA\",5,IF(LEFT(H200,2)=\"MF\",5,IF(LEFT(H200,2)=\"GR\",5,IF(LEFT(H200,2)=\"RN\",5,IF(LEFT(H200,2)=\"YO\",5,IF(LEFT(H200,2)=\"PN\",5,\"\"))))))))))","v":""}]
[null,"",null,null,"",null,null,null,null,null,null,null,null,"",false,0,""]
[null,"",null,null,"",null,null,null,null,null,null,null,null,"",false,0,""]
[null,"",null,null,"",null,null,null,null,null,null,null,null,"",false,0,""]
[null,"",null,null,"",null,null,null,null,null,null,null,null,"",false,0,""]
[null,"",null,null,"",null,null,null,null,null,null,null,null,"",false,0,""]
[null,"",null,null,"",null,null,null,null,null,null,null,null,"",false,0,""]
[null,"",null,null,"",null,null,null,null,null,null,null,null,"",false,0,""]
[null,"",null,null,"",null,null,null,null,null,null,null,null,"",false,0,""]
[null,"",null,null,"",null,null,null,null,null,null,null,null,"",false,0,""]
[null,"",null,null,"",null,null,null,null,null,null,null,null,"",false,0,""]
[null,"",null,null,"",null,null,null,null,null,null,null,null,"",false,0,""]
[null,"",null,null,"",null,null,null,null,null,null,null,null,"",false,0,""]
[null,"",null,null,"",null,null,null,null,null,null,null,null,"",false,0,""]
[null,"",null,null,"",null,null,null,null,null,null,null,null,"",false,0,""]
[null,"",null,null,"",null,null,null,null,null,null,null,null,"",false,0,""]
[null,"",null,null,"",null,null,null,null,null,null,null,null,"",false,0,""]
[null,"",null,null,"",null,null,null,null,null,null,null,null,"",false,0,""]
[null,"",null,null,"",null,null,null,null,null,null,null,null,"",false,0,""]
[null,"",null,null,"",null,null,null,null,null,null,null,null,"",false,0,""]
[null,"",null,null,"",null,null,null,null,null,null,null,null,"",false,0,""]
[null,"",null,null,"",null,null,null,null,null,null,null,null,"",false,0,""]
[null,"",null,null,"",null,null,null,null,null,null,null,null,"",false,0,""]
[null,"",null,null,"",null,null,null,null,null,null,null,null,"",false,0,""]
[null,"",null,null,"",null,null,null,null,null,null,null,null,"",false,0,""]
[null,"",null,null,"",null,null,null,null,null,null,null,null,"",false,0,""]
[null,"",null,null,"",null,null,null,null,null,null,null,null,"",false,0,""]
[null,"",null,null,"",null,null,null,null,null,null,null,null,"",false,0,""]
[null,"",null,null,"",null,null,null,null,null,null,null,null,"",false,0,""]
[null,"",null,null,"",null,null,null,null,null,null,null,null,"",false,0,""]
[null,"",null,null,"",null,null,null,null,null,null,null,null,"",false,0,""]
[null,"",null,null,"",null,null,null,null,null,null,null,null,"",false,0,""]
[null,"",null,null,"",null,null,null,null,null,null,null,null,"",false,0,""]
[null,"",null,null,"",null,null,null,null,null,null,null,null,"",false,0,""]
[null,"",null,null,"",null,null,null,null,null,null,null,null,"",false,0,""]
[null,"",null,null,"",null,null,null,null,null,null,null,null,"",false,0,""]
[null,"",null,null,"",null,null,null,null,null,null,null,null,"",false,0,""]
[null,"",null,null,"",null,null,null,null,null,null,null,null,"",false,0,""]
[null,"",null,null,"",null,null,null,null,null,null,null,null,"",false,0,""]
[null,"",null,null,"",null,null,null,null,null,null,null,null,"",false,0,""]
[null,"",null,null,"",null,null,null,null,null,null,null,null,"",false,0,""]
[null,"",null,null,"",null,null,null,null,null,null,null,null,"",false,0,""]
[null,"",null,null,"",null,null,null,null,null,null,null,null,"",false,0,""]
[null,"",null,null,"",null,null,null,null,null,null,null,null,"",false,0,""]
[null,"",null,null,"",null,null,null,null,null,null,null,null,"",false,0,""]
[null,"",null,null,"",null,null,null,null,null,null,null,null,"",false,0,""]
[null,"",null,null,"",null,null,null,null,null,null,null,null,"",false,0,""]
[null,"",null,null,"",null,null,null,null,null,null,null,null,"",false,0,""]
[null,"",null,null,"",null,null,null,null,null,null,null,null,"",false,0,""]
[null,"",null,null,"",null,null,null,null,null,null,null,null,"",false,0,""]
[null,"",null,null,"",null,null,null,null,null,null,null,null,"",false,0,""]
[null,"",null,null,"",null,null,null,null,null,null,null,null,"",false,0,""]
[null,"",null,null,"",null,null,null,null,null,null,null,null,"",false,0,""]
[null,"",null,null,"",null,null,null,null,null,null,null,null,"",false,0,""]
[null,"",null,null,"",null,null,null,null,null,null,null,null,"",false,0,""]
[null,"",null,null,"",null,null,null,null,null,null,null,null,"",false,0,""]
[null,"",null,null,"",null,null,null,null,null,null,null,null,"",false,0,""]
[null,"",null,null,"",null,null,null,null,null,null,null,null,"",false,0,""]
[null,"",null,null,"",null,null,null,null,null,null,null,null,"",false,0,""]
[null,"",null,null,"",null,null,null,null,null,null,null,null,"",false,0,""]
[null,"",null,null,"",null,null,null,null,null,null,null,null,"",false,0,""]
[null,"",null,null,"",null,null,null,null,null,null,null,null,"",false,0,""]
[null,"",null,null,"",null,null,null,null,null,null,null,null,"",false,0,""]
[null,"",null,null,"",null,null,null,null,null,null,null,null,"",false,0,""]
[null,{"$f":"IF(F264=\"\",\"\",ROW(B258))","v":""},null,null,{"$f":"IF(AND(I264>3499,I264<3801),80,IF(AND(I264>6999,I264<7201),40,IF(AND(I264>13999,I264<14351),20,IF(AND(I264>20999,I264<21451),15,IF(AND(I264>27999,I264<29701),10,\"\")))))","v":""},null,null,null,null,null,null,null,null,{"$f":"IF(LEFT(H264,2)=\"GR\",H264,IF(LEFT(H264,2)=\"CA\",H264,IF(LEFT(H264,2)=\"FN\",H264,IF(LEFT(H264,2)=\"IN\",H264,IF(LEFT(H264,2)=\"MA\",H264,IF(LEFT(H264,2)=\"MF\",H264,IF(LEFT(H264,2)=\"MI\",H264,IF(LEFT(H264,2)=\"RN\",H264,IF(LEFT(H264,2)=\"YO\",H264,IF(LEFT(H264,2)=\"PN\",H264,\"\"))))))))))","v":""},{"$f":"IF(LEFT(H264,2)=\"MI\",COUNTIF(N264:N762,N264))","v":false},{"$f":"IF(O264>=2,0,1)","v":0},{"$f":"IF(LEFT(H264,2)=\"MI\",10,IF(LEFT(H264,2)=\"CA\",5,IF(LEFT(H264,2)=\"FN\",5,IF(LEFT(H264,2)=\"IN\",5,IF(LEFT(H264,2)=\"MA\",5,IF(LEFT(H264,2)=\"MF\",5,IF(LEFT(H264,2)=\"GR\",5,IF(LEFT(H264,2)=\"RN\",5,IF(LEFT(H264,2)=\"YO\",5,IF(LEFT(H264,2)=\"PN\",5,\"\"))))))))))","v":""}]
[null,"",null,null,"",null,null,null,null,null,null,null,null,"",false,0,""]
[null,"",null,null,"",null,null,null,null,null,null,null,null,"",false,0,""]
[null,"",null,null,"",null,null,null,null,null,null,null,null,"",false,0,""]
[null,"",null,null,"",null,null,null,null,null,null,null,null,"",false,0,""]
[null,"",null,null,"",null,null,null,null,null,null,null,null,"",false,0,""]
[null,"",null,null,"",null,null,null,null,null,null,null,null,"",false,0,""]
[null,"",null,null,"",null,null,null,null,null,null,null,null,"",false,0,""]
[null,"",null,null,"",null,null,null,null,null,null,null,null,"",false,0,""]
[null,"",null,null,"",null,null,null,null,null,null,null,null,"",false,0,""]
[null,"",null,null,"",null,null,null,null,null,null,null,null,"",false,0,""]
[null,"",null,null,"",null,null,null,null,null,null,null,null,"",false,0,""]
[null,"",null,null,"",null,null,null,null,null,null,null,null,"",false,0,""]
[null,"",null,null,"",null,null,null,null,null,null,null,null,"",false,0,""]
[null,"",null,null,"",null,null,null,null,null,null,null,null,"",false,0,""]
[null,"",null,null,"",null,null,null,null,null,null,null,null,"",false,0,""]
[null,"",null,null,"",null,null,null,null,null,null,null,null,"",false,0,""]
[null,"",null,null,"",null,null,null,null,null,null,null,null,"",false,0,""]
[null,"",null,null,"",null,null,null,null,null,null,null,null,"",false,0,""]
[null,"",null,null,"",null,null,null,null,null,null,null,null,"",false,0,""]
[null,"",null,null,"",null,null,null,null,null,null,null,null,"",false,0,""]
[null,"",null,null,"",null,null,null,null,null,null,null,null,"",false,0,""]
[null,"",null,null,"",null,null,null,null,null,null,null,null,"",false,0,""]
[null,"",null,null,"",null,null,null,null,null,null,null,null,"",false,0,""]
[null,"",null,null,"",null,null,null,null,null,null,null,null,"",false,0,""]
[null,"",null,null,"",null,null,null,null,null,null,null,null,"",false,0,""]
[null,"",null,null,"",null,null,null,null,null,null,null,null,"",false,0,""]
[null,"",null,null,"",null,null,null,null,null,null,null,null,"",false,0,""]
[null,"",null,null,"",null,null,null,null,null,null,null,null,"",false,0,""]
[null,"",null,null,"",null,null,null,null,null,null,null,null,"",false,0,""]
[null,"",null,null,"",null,null,null,null,null,null,null,null,"",false,0,""]
[null,"",null,null,"",null,null,null,null,null,null,null,null,"",false,0,""]
[null,"",null,null,"",null,null,null,null,null,null,null,null,"",false,0,""]
[null,"",null,null,"",null,null,null,null,null,null,null,null,"",false,0,""]
[null,"",null,null,"",null,null,null,null,null,null,null,null,"",false,0,""]
[null,"",null,null,"",null,null,null,null,null,null,null,null,"",false,0,""]
[null,"",null,null,"",null,null,null,null,null,null,null,null,"",false,0,""]
[null,"",null,null,"",null,null,null,null,null,null,null,null,"",false,0,""]
[null,"",null,null,"",null,null,null,null,null,null,null,null,"",false,0,""]
[null,"",null,null,"",null,null,null,null,null,null,null,null,"",false,0,""]
[null,"",null,null,"",null,null,null,null,null,null,null,null,"",false,0,""]
[null,"",null,null,"",null,null,null,null,null,null,null,null,"",false,0,""]
[null,"",null,null,"",null,null,null,null,null,null,null,null,"",false,0,""]
[null,"",null,null,"",null,null,null,null,null,null,null,null,"",false,0,""]
[null,"",null,null,"",null,null,null,null,null,null,null,null,"",false,0,""]
[null,"",null,null,"",null,null,null,null,null,null,null,null,"",false,0,""]
[null,"",null,null,"",null,null,null,null,null,null,null,null,"",false,0,""]
[null,"",null,null,"",null,null,null,null,null,null,null,null,"",false,0,""]
[null,"",null,null,"",null,null,null,null,null,null,null,null,"",false,0,""]
[null,"",null,null,"",null,null,null,null,null,null,null,null,"",false,0,""]
[null,"",null,null,"",null,null,null,null,null,null,null,null,"",false,0,""]
[null,"",null,null,"",null,null,null,null,null,null,null,null,"",false,0,""]
[null,"",null,null,"",null,null,null,null,null,null,null,null,"",false,0,""]
[null,"",null,null,"",null,null,null,null,null,null,null,null,"",false,0,""]
[null,"",null,null,"",null,null,null,null,null,null,null,null,"",false,0,""]
[null,"",null,null,"",null,null,null,null,null,null,null,null,"",false,0,""]
[null,"",null,null,"",null,null,null,null,null,null,null,null,"",false,0,""]
[null,"",null,null,"",null,null,null,null,null,null,null,null,"",false,0,""]
[null,"",null,null,"",null,null,null,null,null,null,null,null,"",false,0,""]
[null,"",null,null,"",null,null,null,null,null,null,null,null,"",false,0,""]
[null,"",null,null,"",null,null,null,null,null,null,null,null,"",false,0,""]
[null,"",null,null,"",null,null,null,null,null,null,null,null,"",false,0,""]
[null,"",null,null,"",null,null,null,null,null,null,null,null,"",false,0,""]
[null,"",null,null,"",null,null,null,null,null,null,null,null,"",false,0,""]
[null,{"$f":"IF(F328=\"\",\"\",ROW(B322))","v":""},null,null,{"$f":"IF(AND(I328>3499,I328<3801),80,IF(AND(I328>6999,I328<7201),40,IF(AND(I328>13999,I328<14351),20,IF(AND(I328>20999,I328<21451),15,IF(AND(I328>27999,I328<29701),10,\"\")))))","v":""},null,null,null,null,null,null,null,null,{"$f":"IF(LEFT(H328,2)=\"GR\",H328,IF(LEFT(H328,2)=\"CA\",H328,IF(LEFT(H328,2)=\"FN\",H328,IF(LEFT(H328,2)=\"IN\",H328,IF(LEFT(H328,2)=\"MA\",H328,IF(LEFT(H328,2)=\"MF\",H328,IF(LEFT(H328,2)=\"MI\",H328,IF(LEFT(H328,2)=\"RN\",H328,IF(LEFT(H328,2)=\"YO\",H328,IF(LEFT(H328,2)=\"PN\",H328,\"\"))))))))))","v":""},{"$f":"IF(LEFT(H328,2)=\"MI\",COUNTIF(N328:N826,N328))","v":false},{"$f":"IF(O328>=2,0,1)","v":0},{"$f":"IF(LEFT(H328,2)=\"MI\",10,IF(LEFT(H328,2)=\"CA\",5,IF(LEFT(H328,2)=\"FN\",5,IF(LEFT(H328,2)=\"IN\",5,IF(LEFT(H328,2)=\"MA\",5,IF(LEFT(H328,2)=\"MF\",5,IF(LEFT(H328,2)=\"GR\",5,IF(LEFT(H328,2)=\"RN\",5,IF(LEFT(H328,2)=\"YO\",5,IF(LEFT(H328,2)=\"PN\",5,\"\"))))))))))","v":""}]
[null,"",null,null,"",null,null,null,null,null,null,null,null,"",false,0,""]
[null,"",null,null,"",null,null,null,null,null,null,null,null,"",false,0,""]
[null,"",null,null,"",null,null,null,null,null,null,null,null,"",false,0,""]
[null,"",null,null,"",null,null,null,null,null,null,null,null,"",false,0,""]
[null,"",null,null,"",null,null,null,null,null,null,null,null,"",false,0,""]
[null,"",null,null,"",null,null,null,null,null,null,null,null,"",false,0,""]
[null,"",null,null,"",null,null,null,null,null,null,null,null,"",false,0,""]
[null,"",null,null,"",null,null,null,null,null,null,null,null,"",false,0,""]
[null,"",null,null,"",null,null,null,null,null,null,null,null,"",false,0,""]
[null,"",null,null,"",null,null,null,null,null,null,null,null,"",false,0,""]
[null,"",null,null,"",null,null,null,null,null,null,null,null,"",false,0,""]
[null,"",null,null,"",null,null,null,null,null,null,null,null,"",false,0,""]
[null,"",null,null,"",null,null,null,null,null,null,null,null,"",false,0,""]
[null,"",null,null,"",null,null,null,null,null,null,null,null,"",false,0,""]
[null,"",null,null,"",null,null,null,null,null,null,null,null,"",false,0,""]
[null,"",null,null,"",null,null,null,null,null,null,null,null,"",false,0,""]
[null,"",null,null,"",null,null,null,null,null,null,null,null,"",false,0,""]
[null,"",null,null,"",null,null,null,null,null,null,null,null,"",false,0,""]
[null,"",null,null,"",null,null,null,null,null,null,null,null,"",false,0,""]
[null,"",null,null,"",null,null,null,null,null,null,null,null,"",false,0,""]
[null,"",null,null,"",null,null,null,null,null,null,null,null,"",false,0,""]
[null,"",null,null,"",null,null,null,null,null,null,null,null,"",false,0,""]
[null,"",null,null,"",null,null,null,null,null,null,null,null,"",false,0,""]
[null,"",null,null,"",null,null,null,null,null,null,null,null,"",false,0,""]
[null,"",null,null,"",null,null,null,null,null,null,null,null,"",false,0,""]
[null,"",null,null,"",null,null,null,null,null,null,null,null,"",false,0,""]
[null,"",null,null,"",null,null,null,null,null,null,null,null,"",false,0,""]
[null,"",null,null,"",null,null,null,null,null,null,null,null,"",false,0,""]
[null,"",null,null,"",null,null,null,null,null,null,null,null,"",false,0,""]
[null,"",null,null,"",null,null,null,null,null,null,null,null,"",false,0,""]
[null,"",null,null,"",null,null,null,null,null,null,null,null,"",false,0,""]
[null,"",null,null,"",null,null,null,null,null,null,null,null,"",false,0,""]
[null,"",null,null,"",null,null,null,null,null,null,null,null,"",false,0,""]
[null,"",null,null,"",null,null,null,null,null,null,null,null,"",false,0,""]
[null,"",null,null,"",null,null,null,null,null,null,null,null,"",false,0,""]
[null,"",null,null,"",null,null,null,null,null,null,null,null,"",false,0,""]
[null,"",null,null,"",null,null,null,null,null,null,null,null,"",false,0,""]
[null,"",null,null,"",null,null,null,null,null,null,null,null,"",false,0,""]
[null,"",null,null,"",null,null,null,null,null,null,null,null,"",false,0,""]
[null,"",null,null,"",null,null,null,null,null,null,null,null,"",false,0,""]
[null,"",null,null,"",null,null,null,null,null,null,null,null,"",false,0,""]
[null,"",null,null,"",null,null,null,null,null,null,null,null,"",false,0,""]
[null,"",null,null,"",null,null,null,null,null,null,null,null,"",false,0,""]
[null,"",null,null,"",null,null,null,null,null,null,null,null,"",false,0,""]
[null,"",null,null,"",null,null,null,null,null,null,null,null,"",false,0,""]
[null,"",null,null,"",null,null,null,null,null,null,null,null,"",false,0,""]
[null,"",null,null,"",null,null,null,null,null,null,null,null,"",false,0,""]
[null,"",null,null,"",null,null,null,null,null,null,null,null,"",false,0,""]
[null,"",null,null,"",null,null,null,null,null,null,null,null,"",false,0,""]
[null,"",null,null,"",null,null,null,null,null,null,null,null,"",false,0,""]
[null,"",null,null,"",null,null,null,null,null,null,null,null,"",false,0,""]
[null,"",null,null,"",null,null,null,null,null,null,null,null,"",false,0,""]
[null,"",null,null,"",null,null,null,null,null,null,null,null,"",false,0,""]
[null,"",null,null,"",null,null,null,null,null,null,null,null,"",false,0,""]
[null,"",null,null,"",null,null,null,null,null,null,null,null,"",false,0,""]
[null,"",null,null,"",null,null,null,null,null,null,null,null,"",false,0,""]
[null,"",null,null,"",null,null,null,null,null,null,null,null,"",false,0,""]
[null,"",null,null,"",null,null,null,null,null,null,null,null,"",false,0,""]
[null,"",null,null,"",null,null,null,null,null,null,null,null,"",false,0,""]
[null,"",null,null,"",null,null,null,null,null,null,null,null,"",false,0,""]
[null,"",null,null,"",null,null,null,null,null,null,null,null,"",false,0,""]
[null,"",null,null,"",null,null,null,null,null,null,null,null,"",false,0,""]
[null,"",null,null,"",null,null,null,null,null,null,null,null,"",false,0,""]
[null,{"$f":"IF(F392=\"\",\"\",ROW(B386))","v":""},null,null,{"$f":"IF(AND(I392>3499,I392<3801),80,IF(AND(I392>6999,I392<7201),40,IF(AND(I392>13999,I392<14351),20,IF(AND(I392>20999,I392<21451),15,IF(AND(I392>27999,I392<29701),10,\"\")))))","v":""},null,null,null,null,null,null,null,null,{"$f":"IF(LEFT(H392,2)=\"GR\",H392,IF(LEFT(H392,2)=\"CA\",H392,IF(LEFT(H392,2)=\"FN\",H392,IF(LEFT(H392,2)=\"IN\",H392,IF(LEFT(H392,2)=\"MA\",H392,IF(LEFT(H392,2)=\"MF\",H392,IF(LEFT(H392,2)=\"MI\",H392,IF(LEFT(H392,2)=\"RN\",H392,IF(LEFT(H392,2)=\"YO\",H392,IF(LEFT(H392,2)=\"PN\",H392,\"\"))))))))))","v":""},{"$f":"IF(LEFT(H392,2)=\"MI\",COUNTIF(N392:N890,N392))","v":false},{"$f":"IF(O392>=2,0,1)","v":0},{"$f":"IF(LEFT(H392,2)=\"MI\",10,IF(LEFT(H392,2)=\"CA\",5,IF(LEFT(H392,2)=\"FN\",5,IF(LEFT(H392,2)=\"IN\",5,IF(LEFT(H392,2)=\"MA\",5,IF(LEFT(H392,2)=\"MF\",5,IF(LEFT(H392,2)=\"GR\",5,IF(LEFT(H392,2)=\"RN\",5,IF(LEFT(H392,2)=\"YO\",5,IF(LEFT(H392,2)=\"PN\",5,\"\"))))))))))","v":""}]
[null,"",null,null,"",null,null,null,null,null,null,null,null,"",false,0,""]
[null,"",null,null,"",null,null,null,null,null,null,null,null,"",false,0,""]
[null,"",null,null,"",null,null,null,null,null,null,null,null,"",false,0,""]
[null,"",null,null,"",null,null,null,null,null,null,null,null,"",false,0,""]
[null,"",null,null,"",null,null,null,null,null,null,null,null,"",false,0,""]
[null,"",null,null,"",null,null,null,null,null,null,null,null,"",false,0,""]
[null,"",null,null,"",null,null,null,null,null,null,null,null,"",false,0,""]
[null,"",null,null,"",null,null,null,null,null,null,null,null,"",false,0,""]
[null,"",null,null,"",null,null,null,null,null,null,null,null,"",false,0,""]
[null,"",null,null,"",null,null,null,null,null,null,null,null,"",false,0,""]
[null,"",null,null,"",null,null,null,null,null,null,null,null,"",false,0,""]
[null,"",null,null,"",null,null,null,null,null,null,null,null,"",false,0,""]
[null,"",null,null,"",null,null,null,null,null,null,null,null,"",false,0,""]
[null,"",null,null,"",null,null,null,null,null,null,null,null,"",false,0,""]
[null,"",null,null,"",null,null,null,null,null,null,null,null,"",false,0,""]
[null,"",null,null,"",null,null,null,null,null,null,null,null,"",false,0,""]
[null,"",null,null,"",null,null,null,null,null,null,null,null,"",false,0,""]
[null,"",null,null,"",null,null,null,null,null,null,null,null,"",false,0,""]
[null,"",null,null,"",null,null,null,null,null,null,null,null,"",false,0,""]
[null,"",null,null,"",null,null,null,null,null,null,null,null,"",false,0,""]
[null,"",null,null,"",null,null,null,null,null,null,null,null,"",false,0,""]
[null,"",null,null,"",null,null,null,null,null,null,null,null,"",false,0,""]
[null,"",null,null,"",null,null,null,null,null,null,null,null,"",false,0,""]
[null,"",null,null,"",null,null,null,null,null,null,null,null,"",false,0,""]
[null,"",null,null,"",null,null,null,null,null,null,null,null,"",false,0,""]
[null,"",null,null,"",null,null,null,null,null,null,null,null,"",false,0,""]
[null,"",null,null,"",null,null,null,null,null,null,null,null,"",false,0,""]
[null,"",null,null,"",null,null,null,null,null,null,null,null,"",false,0,""]
[null,"",null,null,"",null,null,null,null,null,null,null,null,"",false,0,""]
[null,"",null,null,"",null,null,null,null,null,null,null,null,"",false,0,""]
[null,"",null,null,"",null,null,null,null,null,null,null,null,"",false,0,""]
[null,"",null,null,"",null,null,null,null,null,null,null,null,"",false,0,""]
[null,"",null,null,"",null,null,null,null,null,null,null,null,"",false,0,""]
[null,"",null,null,"",null,null,null,null,null,null,null,null,"",false,0,""]
[null,"",null,null,"",null,null,null,null,null,null,null,null,"",false,0,""]
[null,"",null,null,"",null,null,null,null,null,null,null,null,"",false,0,""]
[null,"",null,null,"",null,null,null,null,null,null,null,null,"",false,0,""]
[null,"",null,null,"",null,null,null,null,null,null,null,null,"",false,0,""]
[null,"",null,null,"",null,null,null,null,null,null,null,null,"",false,0,""]
[null,"",null,null,"",null,null,null,null,null,null,null,null,"",false,0,""]
[null,"",null,null,"",null,null,null,null,null,null,null,null,"",false,0,""]
[null,"",null,null,"",null,null,null,null,null,null,null,null,"",false,0,""]
[null,"",null,null,"",null,null,null,null,null,null,null,null,"",false,0,""]
[null,"",null,null,"",null,null,null,null,null,null,null,null,"",false,0,""]
[null,"",null,null,"",null,null,null,null,null,null,null,null,"",false,0,""]
[null,"",null,null,"",null,null,null,null,null,null,null,null,"",false,0,""]
[null,"",null,null,"",null,null,null,null,null,null,null,null,"",false,0,""]
[null,"",null,null,"",null,null,null,null,null,null,null,null,"",false,0,""]
[null,"",null,null,"",null,null,null,null,null,null,null,null,"",false,0,""]
[null,"",null,null,"",null,null,null,null,null,null,null,null,"",false,0,""]
[null,"",null,null,"",null,null,null,null,null,null,null,null,"",false,0,""]
[null,"",null,null,"",null,null,null,null,null,null,null,null,"",false,0,""]
[null,"",null,null,"",null,null,null,null,null,null,null,null,"",false,0,""]
[null,"",null,null,"",null,null,null,null,null,null,null,null,"",false,0,""]
[null,"",null,null,"",null,null,null,null,null,null,null,null,"",false,0,""]
[null,"",null,null,"",null,null,null,null,null,null,null,null,"",false,0,""]
[null,"",null,null,"",null,null,null,null,null,null,null,null,"",false,0,""]
[null,"",null,null,"",null,null,null,null,null,null,null,null,"",false,0,""]
[null,"",null,null,"",null,null,null,null,null,null,null,null,"",false,0,""]
[null,"",null,null,"",null,null,null,null,null,null,null,null,"",false,0,""]
[null,"",null,null,"",null,null,null,null,null,null,null,null,"",false,0,""]
[null,"",null,null,"",null,null,null,null,null,null,null,null,"",false,0,""]
[null,"",null,null,"",null,null,null,null,null,null,null,null,"",false,0,""]
[null,{"$f":"IF(F456=\"\",\"\",ROW(B450))","v":""},null,null,{"$f":"IF(AND(I456>3499,I456<3801),80,IF(AND(I456>6999,I456<7201),40,IF(AND(I456>13999,I456<14351),20,IF(AND(I456>20999,I456<21451),15,IF(AND(I456>27999,I456<29701),10,\"\")))))","v":""},null,null,null,null,null,null,null,null,{"$f":"IF(LEFT(H456,2)=\"GR\",H456,IF(LEFT(H456,2)=\"CA\",H456,IF(LEFT(H456,2)=\"FN\",H456,IF(LEFT(H456,2)=\"IN\",H456,IF(LEFT(H456,2)=\"MA\",H456,IF(LEFT(H456,2)=\"MF\",H456,IF(LEFT(H456,2)=\"MI\",H456,IF(LEFT(H456,2)=\"RN\",H456,IF(LEFT(H456,2)=\"YO\",H456,IF(LEFT(H456,2)=\"PN\",H456,\"\"))))))))))","v":""},{"$f":"IF(LEFT(H456,2)=\"MI\",COUNTIF(N456:N954,N456))","v":false},{"$f":"IF(O456>=2,0,1)","v":0},{"$f":"IF(LEFT(H456,2)=\"MI\",10,IF(LEFT(H456,2)=\"CA\",5,IF(LEFT(H456,2)=\"FN\",5,IF(LEFT(H456,2)=\"IN\",5,IF(LEFT(H456,2)=\"MA\",5,IF(LEFT(H456,2)=\"MF\",5,IF(LEFT(H456,2)=\"GR\",5,IF(LEFT(H456,2)=\"RN\",5,IF(LEFT(H456,2)=\"YO\",5,IF(LEFT(H456,2)=\"PN\",5,\"\"))))))))))","v":""}]
[null,"",null,null,"",null,null,null,null,null,null,null,null,"",false,0,""]
[null,"",null,null,"",null,null,null,null,null,null,null,null,"",false,0,""]
[null,"",null,null,"",null,null,null,null,null,null,null,null,"",false,0,""]
[null,"",null,null,"",null,null,null,null,null,null,null,null,"",false,0,""]
[null,"",null,null,"",null,null,null,null,null,null,null,null,"",false,0,""]
[null,"",null,null,"",null,null,null,null,null,null,null,null,"",false,0,""]
[null,"",null,null,"",null,null,null,null,null,null,null,null,"",false,0,""]
[null,"",null,null,"",null,null,null,null,null,null,null,null,"",false,0,""]
[null,"",null,null,"",null,null,null,null,null,null,null,null,"",false,0,""]
[null,"",null,null,"",null,null,null,null,null,null,null,null,"",false,0,""]
[null,"",null,null,"",null,null,null,null,null,null,null,null,"",false,0,""]
[null,"",null,null,"",null,null,null,null,null,null,null,null,"",false,0,""]
[null,"",null,null,"",null,null,null,null,null,null,null,null,"",false,0,""]
[null,"",null,null,"",null,null,null,null,null,null,null,null,"",false,0,""]
[null,"",null,null,"",null,null,null,null,null,null,null,null,"",false,0,""]
[null,"",null,null,"",null,null,null,null,null,null,null,null,"",false,0,""]
[null,"",null,null,"",null,null,null,null,null,null,null,null,"",false,0,""]
[null,"",null,null,"",null,null,null,null,null,null,null,null,"",false,0,""]
[null,"",null,null,"",null,null,null,null,null,null,null,null,"",false,0,""]
[null,"",null,null,"",null,null,null,null,null,null,null,null,"",false,0,""]
[null,"",null,null,"",null,null,null,null,null,null,null,null,"",false,0,""]
[null,"",null,null,"",null,null,null,null,null,null,null,null,"",false,0,""]
[null,"",null,null,"",null,null,null,null,null,null,null,null,"",false,0,""]
[null,"",null,null,"",null,null,null,null,null,null,null,null,"",false,0,""]
[null,"",null,null,"",null,null,null,null,null,null,null,null,"",false,0,""]
[null,"",null,null,"",null,null,null,null,null,null,null,null,"",false,0,""]
[null,"",null,null,"",null,null,null,null,null,null,null,null,"",false,0,""]
[null,"",null,null,"",null,null,null,null,null,null,null,null,"",false,0,""]
[null,"",null,null,"",null,null,null,null,null,null,null,null,"",false,0,""]
[null,"",null,null,"",null,null,null,null,null,null,null,null,"",false,0,""]
[null,"",null,null,"",null,null,null,null,null,null,null,null,"",false,0,""]
[null,"",null,null,"",null,null,null,null,null,null,null,null,"",false,0,""]
[null,"",null,null,"",null,null,null,null,null,null,null,null,"",false,0,""]
[null,"",null,null,"",null,null,null,null,null,null,null,null,"",false,0,""]
[null,"",null,null,"",null,null,null,null,null,null,null,null,"",false,0,""]
[null,"",null,null,"",null,null,null,null,null,null,null,null,"",false,0,""]
[null,"",null,null,"",null,null,null,null,null,null,null,null,"",false,0,""]
[null,"",null,null,"",null,null,null,null,null,null,null,null,"",false,0,""]
[null,"",null,null,"",null,null,null,null,null,null,null,null,"",false,0,""]
[null,"",null,null,"",null,null,null,null,null,null,null,null,"",false,0,""]
[null,"",null,null,"",null,null,null,null,null,null,null,null,"",false,0,""]
[null,"",null,null,"",null,null,null,null,null,null,null,null,"",false,0,""]
[null,"",null,null,"",null,null,null,null,null,null,null,null,"",false,0,""]
[null,"",null,null,"",null,null,null,null,null,null,null,null,"",false,0,""]
[null,"",null,null,"",null,null,null,null,null,null,null,null,"",false,0,""]
[null,"",null,null,"",null,null,null,null,null,null,null,null,"",false,0,""]
[null,"",null,null,"",null,null,null,null,null,null,null,null,"",false,0,""]
[null,"",null,null,"",null,null,null,null,null,null,null,null,"",false,0,""]
[null,"",null,null,"",null,null,null,null,null,null,null,null,"",false,0,""]
[null,"",null,null,"",null,null,null,null,null,null,null,null,"",false,0,""]
[null,null,null,null,null,null,null,null,null,null,null,null,null,{"$f":"IF(LEFT(H507,2)=\"bm\",H507,IF(LEFT(H507,2)=\"CA\",H507,IF(LEFT(H507,2)=\"FN\",H507,IF(LEFT(H507,2)=\"IN\",H507,IF(LEFT(H507,2)=\"MA\",H507,IF(LEFT(H507,2)=\"MF\",H507,IF(LEFT(H507,2)=\"MI\",H507,IF(LEFT(H507,2)=\"RN\",H507,IF(LEFT(H507,2)=\"YO\",H507,IF(LEFT(H507,2)=\"PN\",H507,\"\"))))))))))","v":""},{"$f":"IF(LEFT(H507,2)=\"MI\",COUNTIF(N507:N1005,N507))","v":false},{"$f":"IF(O507>=2,0,1)","v":0},{"$f":"IF(LEFT(H507,2)=\"MI\",10,IF(LEFT(H507,2)=\"CA\",5,IF(LEFT(H507,2)=\"FN\",5,IF(LEFT(H507,2)=\"IN\",5,IF(LEFT(H507,2)=\"MA\",5,IF(LEFT(H507,2)=\"MF\",5,IF(LEFT(H507,2)=\"BM\",5,IF(LEFT(H507,2)=\"RN\",5,IF(LEFT(H507,2)=\"YO\",5,IF(LEFT(H507,2)=\"PN\",5,\"\"))))))))))","v":""}]
[null,null,null,null,null,null,null,null,null,null,null,null,null,"",false,0,""]
[null,null,null,null,null,null,null,null,null,null,null,null,null,"",false,0,""]
[null,null,null,null,null,null,null,null,null,null,null,null,null,"",false,0,""]
[null,null,null,null,null,null,null,null,null,null,null,null,null,"",false,0,""]
[null,null,null,null,null,null,null,null,null,null,null,null,null,"",false,0,""]
[null,null,null,null,null,null,null,null,null,null,null,null,null,"",false,0,""]
[null,null,null,null,null,null,null,null,null,null,null,null,null,"",false,0,""]
[null,null,null,null,null,null,null,null,null,null,null,null,null,"",false,0,""]
[null,null,null,null,null,null,null,null,null,null,null,null,null,"",false,0,""]
[null,null,null,null,null,null,null,null,null,null,null,null,null,"",false,0,""]
[null,null,null,null,null,null,null,null,null,null,null,null,null,"",false,0,""]
[null,null,null,null,null,null,null,null,null,null,null,null,null,"",false,0,""]
[null,null,null,null,null,null,null,null,null,null,null,null,null,{"$f":"IF(LEFT(H520,2)=\"bm\",H520,IF(LEFT(H520,2)=\"CA\",H520,IF(LEFT(H520,2)=\"FN\",H520,IF(LEFT(H520,2)=\"IN\",H520,IF(LEFT(H520,2)=\"MA\",H520,IF(LEFT(H520,2)=\"MF\",H520,IF(LEFT(H520,2)=\"MI\",H520,IF(LEFT(H520,2)=\"RN\",H520,IF(LEFT(H520,2)=\"YO\",H520,IF(LEFT(H520,2)=\"PN\",H520,\"\"))))))))))","v":""},{"$f":"IF(LEFT(H520,2)=\"MI\",COUNTIF(N520:N1018,N520))","v":false},{"$f":"IF(O520>=2,0,1)","v":0},{"$f":"IF(LEFT(H520,2)=\"MI\",10,IF(LEFT(H520,2)=\"CA\",5,IF(LEFT(H520,2)=\"FN\",5,IF(LEFT(H520,2)=\"IN\",5,IF(LEFT(H520,2)=\"MA\",5,IF(LEFT(H520,2)=\"MF\",5,IF(LEFT(H520,2)=\"BM\",5,IF(LEFT(H520,2)=\"RN\",5,IF(LEFT(H520,2)=\"YO\",5,IF(LEFT(H520,2)=\"PN\",5,\"\"))))))))))","v":""}]
[null,null,null,null,null,null,null,null,null,null,null,null,null,"",false,0,""]
[null,null,null,null,null,null,null,null,null,null,null,null,null,"",false,0,""]
[null,null,null,null,null,null,null,null,null,null,null,null,null,"",false,0,""]
[null,null,null,null,null,null,null,null,null,null,null,null,null,"",false,0,""]
[null,null,null,null,null,null,null,null,null,null,null,null,null,"",false,0,""]
[null,null,null,null,null,null,null,null,null,null,null,null,null,"",false,0,""]
[null,null,null,null,null,null,null,null,null,null,null,null,null,"",false,0,""]
[null,null,null,null,null,null,null,null,null,null,null,null,null,"",false,0,""]
[null,null,null,null,null,null,null,null,null,null,null,null,null,"",false,0,""]
[null,null,null,null,null,null,null,null,null,null,null,null,null,"",false,0,""]
[null,null,null,null,null,null,null,null,null,null,null,null,null,"",false,0,""]
[null,null,null,null,null,null,null,null,null,null,null,null,null,"",false,0,""]
[null,null,null,null,null,null,null,null,null,null,null,null,null,"",false,0,""]
[null,null,null,null,null,null,null,null,null,null,null,null,null,"",false,0,""]
[null,null,null,null,null,null,null,null,null,null,null,null,null,"",false,0,""]
[null,null,null,null,null,null,null,null,null,null,null,null,null,"",false,0,""]
[null,null,null,null,null,null,null,null,null,null,null,null,null,"",false,0,""]
[null,null,null,null,null,null,null,null,null,null,null,null,null,"",false,0,""]
[null,null,null,null,null,null,null,null,null,null,null,null,null,"",false,0,""]
[null,null,null,null,null,null,null,null,null,null,null,null,null,"",false,0,""]
[null,null,null,null,null,null,null,null,null,null,null,null,null,"",false,0,""]
[null,null,null,null,null,null,null,null,null,null,null,null,null,"",false,0,""]
[null,null,null,null,null,null,null,null,null,null,null,null,null,"",false,0,""]
[null,null,null,null,null,null,null,null,null,null,null,null,null,"",false,0,""]
[null,null,null,null,null,null,null,null,null,null,null,null,null,"",false,0,""]
[null,null,null,null,null,null,null,null,null,null,null,null,null,"",false,0,""]
[null,null,null,null,null,null,null,null,null,null,null,null,null,"",false,0,""]
[null,null,null,null,null,null,null,null,null,null,null,null,null,"",false,0,""]
[null,null,null,null,null,null,null,null,null,null,null,null,null,"",false,0,""]
[null,null,null,null,null,null,null,null,null,null,null,null,null,"",false,0,""]
[null,null,null,null,null,null,null,null,null,null,null,null,null,"",false,0,""]
[null,null,null,null,null,null,null,null,null,null,null,null,null,"",false,0,""]
[null,null,null,null,null,null,null,null,null,null,null,null,null,"",false,0,""]
[null,null,null,null,null,null,null,null,null,null,null,null,null,"",false,0,""]
[null,null,null,null,null,null,null,null,null,null,null,null,null,"",false,0,""]
[null,null,null,null,null,null,null,null,null,null,null,null,null,"",false,0,""]
[null,null,null,null,null,null,null,null,null,null,null,null,null,"",false,0,""]
[null,null,null,null,null,null,null,null,null,null,null,null,null,"",false,0,""]
[null,null,null,null,null,null,null,null,null,null,null,null,null,"",false,0,""]
[null,null,null,null,null,null,null,null,null,null,null,null,null,"",false,0,""]
[null,null,null,null,null,null,null,null,null,null,null,null,null,"",false,0,""]
[null,null,null,null,null,null,null,null,null,null,null,null,null,"",false,0,""]
[null,null,null,null,null,null,null,null,null,null,null,null,null,"",false,0,""]
[null,null,null,null,null,null,null,null,null,null,null,null,null,"",false,0,""]
[null,null,null,null,null,null,null,null,null,null,null,null,null,"",false,0,""]
[null,null,null,null,null,null,null,null,null,null,null,null,null,"",false,0,""]
[null,null,null,null,null,null,null,null,null,null,null,null,null,"",false,0,""]
[null,null,null,null,null,null,null,null,null,null,null,null,null,"",false,0,""]
[null,null,null,null,null,null,null,null,null,null,null,null,null,"",false,0,""]
[null,null,null,null,null,null,null,null,null,null,null,null,null,"",false,0,""]
[null,null,null,null,null,null,null,null,null,null,null,null,null,"",false,0,""]
[null,null,null,null,null,null,null,null,null,null,null,null,null,"",false,0,""]
[null,null,null,null,null,null,null,null,null,null,null,null,null,"",false,0,""]
[null,null,null,null,null,null,null,null,null,null,null,null,null,"",false,0,""]
[null,null,null,null,null,null,null,null,null,null,null,null,null,"",false,0,""]
[null,null,null,null,null,null,null,null,null,null,null,null,null,"",false,0,""]
[null,null,null,null,null,null,null,null,null,null,null,null,null,"",false,0,""]
[null,null,null,null,null,null,null,null,null,null,null,null,null,"",false,0,""]
[null,null,null,null,null,null,null,null,null,null,null,null,null,"",false,0,""]
[null,null,null,null,null,null,null,null,null,null,null,null,null,"",false,0,""]
[null,null,null,null,null,null,null,null,null,null,null,null,null,"",false,0,""]
[null,null,null,null,null,null,null,null,null,null,null,null,null,"",false,0,""]
[null,null,null,null,null,null,null,null,null,null,null,null,null,"",false,0,""]
[null,null,null,null,null,null,null,null,null,null,null,null,null,{"$f":"IF(LEFT(H584,2)=\"bm\",H584,IF(LEFT(H584,2)=\"CA\",H584,IF(LEFT(H584,2)=\"FN\",H584,IF(LEFT(H584,2)=\"IN\",H584,IF(LEFT(H584,2)=\"MA\",H584,IF(LEFT(H584,2)=\"MF\",H584,IF(LEFT(H584,2)=\"MI\",H584,IF(LEFT(H584,2)=\"RN\",H584,IF(LEFT(H584,2)=\"YO\",H584,IF(LEFT(H584,2)=\"PN\",H584,\"\"))))))))))","v":""},{"$f":"IF(LEFT(H584,2)=\"MI\",COUNTIF(N584:N1082,N584))","v":false},{"$f":"IF(O584>=2,0,1)","v":0},{"$f":"IF(LEFT(H584,2)=\"MI\",10,IF(LEFT(H584,2)=\"CA\",5,IF(LEFT(H584,2)=\"FN\",5,IF(LEFT(H584,2)=\"IN\",5,IF(LEFT(H584,2)=\"MA\",5,IF(LEFT(H584,2)=\"MF\",5,IF(LEFT(H584,2)=\"BM\",5,IF(LEFT(H584,2)=\"RN\",5,IF(LEFT(H584,2)=\"YO\",5,IF(LEFT(H584,2)=\"PN\",5,\"\"))))))))))","v":""}]
[null,null,null,null,null,null,null,null,null,null,null,null,null,"",false,0,""]
[null,null,null,null,null,null,null,null,null,null,null,null,null,"",false,0,""]
[null,null,null,null,null,null,null,null,null,null,null,null,null,"",false,0,""]
[null,null,null,null,null,null,null,null,null,null,null,null,null,"",false,0,""]
[null,null,null,null,null,null,null,null,null,null,null,null,null,"",false,0,""]
[null,null,null,null,null,null,null,null,null,null,null,null,null,"",false,0,""]
[null,null,null,null,null,null,null,null,null,null,null,null,null,"",false,0,""]
[null,null,null,null,null,null,null,null,null,null,null,null,null,"",false,0,""]
[null,null,null,null,null,null,null,null,null,null,null,null,null,"",false,0,""]
[null,null,null,null,null,null,null,null,null,null,null,null,null,"",false,0,""]
[null,null,null,null,null,null,null,null,null,null,null,null,null,"",false,0,""]
[null,null,null,null,null,null,null,null,null,null,null,null,null,"",false,0,""]
[null,null,null,null,null,null,null,null,null,null,null,null,null,"",false,0,""]
[null,null,null,null,null,null,null,null,null,null,null,null,null,"",false,0,""]
[null,null,null,null,null,null,null,null,null,null,null,null,null,"",false,0,""]
[null,null,null,null,null,null,null,null,null,null,null,null,null,"",false,0,""]
[null,null,null,null,null,null,null,null,null,null,null,null,null,"",false,0,""]
[null,null,null,null,null,null,null,null,null,null,null,null,null,"",false,0,""]
[null,null,null,null,null,null,null,null,null,null,null,null,null,"",false,0,""]
[null,null,null,null,null,null,null,null,null,null,null,null,null,"",false,0,""]
[null,null,null,null,null,null,null,null,null,null,null,null,null,"",false,0,""]
[null,null,null,null,null,null,null,null,null,null,null,null,null,"",false,0,""]
[null,null,null,null,null,null,null,null,null,null,null,null,null,"",false,0,""]
[null,null,null,null,null,null,null,null,null,null,null,null,null,"",false,0,""]
[null,null,null,null,null,null,null,null,null,null,null,null,null,"",false,0,""]
[null,null,null,null,null,null,null,null,null,null,null,null,null,"",false,0,""]
[null,null,null,null,null,null,null,null,null,null,null,null,null,"",false,0,""]
[null,null,null,null,null,null,null,null,null,null,null,null,null,"",false,0,""]
[null,null,null,null,null,null,null,null,null,null,null,null,null,"",false,0,""]
[null,null,null,null,null,null,null,null,null,null,null,null,null,"",false,0,""]
[null,null,null,null,null,null,null,null,null,null,null,null,null,"",false,0,""]
[null,null,null,null,null,null,null,null,null,null,null,null,null,"",false,0,""]
[null,null,null,null,null,null,null,null,null,null,null,null,null,"",false,0,""]
[null,null,null,null,null,null,null,null,null,null,null,null,null,"",false,0,""]
[null,null,null,null,null,null,null,null,null,null,null,null,null,"",false,0,""]
[null,null,null,null,null,null,null,null,null,null,null,null,null,"",false,0,""]
[null,null,null,null,null,null,null,null,null,null,null,null,null,"",false,0,""]
[null,null,null,null,null,null,null,null,null,null,null,null,null,"",false,0,""]
[null,null,null,null,null,null,null,null,null,null,null,null,null,"",false,0,""]
[null,null,null,null,null,null,null,null,null,null,null,null,null,"",false,0,""]
[null,null,null,null,null,null,null,null,null,null,null,null,null,"",false,0,""]
[null,null,null,null,null,null,null,null,null,null,null,null,null,"",false,0,""]
[null,null,null,null,null,null,null,null,null,null,null,null,null,"",false,0,""]
[null,null,null,null,null,null,null,null,null,null,null,null,null,"",false,0,""]
[null,null,null,null,null,null,null,null,null,null,null,null,null,"",false,0,""]
[null,null,null,null,null,null,null,null,null,null,null,null,null,"",false,0,""]
[null,null,null,null,null,null,null,null,null,null,null,null,null,"",false,0,""]
[null,null,null,null,null,null,null,null,null,null,null,null,null,"",false,0,""]
[null,null,null,null,null,null,null,null,null,null,null,null,null,"",false,0,""]
[null,null,null,null,null,null,null,null,null,null,null,null,null,"",false,0,""]
[null,null,null,null,null,null,null,null,null,null,null,null,null,"",false,0,""]
[null,null,null,null,null,null,null,null,null,null,null,null,null,"",false,0,""]
[null,null,null,null,null,null,null,null,null,null,null,null,null,"",false,0,""]
[null,null,null,null,null,null,null,null,null,null,null,null,null,"",false,0,""]
[null,null,null,null,null,null,null,null,null,null,null,null,null,"",false,0,""]
[null,null,null,null,null,null,null,null,null,null,null,null,null,"",false,0,""]
[null,null,null,null,null,null,null,null,null,null,null,null,null,"",false,0,""]
[null,null,null,null,null,null,null,null,null,null,null,null,null,"",false,0,""]
[null,null,null,null,null,null,null,null,null,null,null,null,null,"",false,0,""]
[null,null,null,null,null,null,null,null,null,null,null,null,null,"",false,0,""]
[null,null,null,null,null,null,null,null,null,null,null,null,null,"",false,0,""]
[null,null,null,null,null,null,null,null,null,null,null,null,null,"",false,0,""]
[null,null,null,null,null,null,null,null,null,null,null,null,null,"",false,0,""]
[null,null,null,null,null,null,null,null,null,null,null,null,null,{"$f":"IF(LEFT(H648,2)=\"bm\",H648,IF(LEFT(H648,2)=\"CA\",H648,IF(LEFT(H648,2)=\"FN\",H648,IF(LEFT(H648,2)=\"IN\",H648,IF(LEFT(H648,2)=\"MA\",H648,IF(LEFT(H648,2)=\"MF\",H648,IF(LEFT(H648,2)=\"MI\",H648,IF(LEFT(H648,2)=\"RN\",H648,IF(LEFT(H648,2)=\"YO\",H648,IF(LEFT(H648,2)=\"PN\",H648,\"\"))))))))))","v":""},{"$f":"IF(LEFT(H648,2)=\"MI\",COUNTIF(N648:N1146,N648))","v":false},{"$f":"IF(O648>=2,0,1)","v":0},{"$f":"IF(LEFT(H648,2)=\"MI\",10,IF(LEFT(H648,2)=\"CA\",5,IF(LEFT(H648,2)=\"FN\",5,IF(LEFT(H648,2)=\"IN\",5,IF(LEFT(H648,2)=\"MA\",5,IF(LEFT(H648,2)=\"MF\",5,IF(LEFT(H648,2)=\"BM\",5,IF(LEFT(H648,2)=\"RN\",5,IF(LEFT(H648,2)=\"YO\",5,IF(LEFT(H648,2)=\"PN\",5,\"\"))))))))))","v":""}]
[null,null,null,null,null,null,null,null,null,null,null,null,null,"",false,0,""]
[null,null,null,null,null,null,null,null,null,null,null,null,null,"",false,0,""]
[null,null,null,null,null,null,null,null,null,null,null,null,null,"",false,0,""]
[null,null,null,null,null,null,null,null,null,null,null,null,null,"",false,0,""]
[null,null,null,null,null,null,null,null,null,null,null,null,null,"",false,0,""]
[null,null,null,null,null,null,null,null,null,null,null,null,null,"",false,0,""]
[null,null,null,null,null,null,null,null,null,null,null,null,null,"",false,0,""]
[null,null,null,null,null,null,null,null,null,null,null,null,null,"",false,0,""]
[null,null,null,null,null,null,null,null,null,null,null,null,null,"",false,0,""]
[null,null,null,null,null,null,null,null,null,null,null,null,null,"",false,0,""]
[null,null,null,null,null,null,null,null,null,null,null,null,null,"",false,0,""]
[null,null,null,null,null,null,null,null,null,null,null,null,null,"",false,0,""]
[null,null,null,null,null,null,null,null,null,null,null,null,null,"",false,0,""]
[null,null,null,null,null,null,null,null,null,null,null,null,null,"",false,0,""]
[null,null,null,null,null,null,null,null,null,null,null,null,null,"",false,0,""]
[null,null,null,null,null,null,null,null,null,null,null,null,null,"",false,0,""]
[null,null,null,null,null,null,null,null,null,null,null,null,null,"",false,0,""]
[null,null,null,null,null,null,null,null,null,null,null,null,null,"",false,0,""]
[null,null,null,null,null,null,null,null,null,null,null,null,null,"",false,0,""]
[null,null,null,null,null,null,null,null,null,null,null,null,null,"",false,0,""]
[null,null,null,null,null,null,null,null,null,null,null,null,null,"",false,0,""]
[null,null,null,null,null,null,null,null,null,null,null,null,null,"",false,0,""]
[null,null,null,null,null,null,null,null,null,null,null,null,null,"",false,0,""]
[null,null,null,null,null,null,null,null,null,null,null,null,null,"",false,0,""]
[null,null,null,null,null,null,null,null,null,null,null,null,null,"",false,0,""]
[null,null,null,null,null,null,null,null,null,null,null,null,null,"",false,0,""]
[null,null,null,null,null,null,null,null,null,null,null,null,null,"",false,0,""]
[null,null,null,null,null,null,null,null,null,null,null,null,null,"",false,0,""]
[null,null,null,null,null,null,null,null,null,null,null,null,null,"",false,0,""]
[null,null,null,null,null,null,null,null,null,null,null,null,null,"",false,0,""]
[null,null,null,null,null,null,null,null,null,null,null,null,null,"",false,0,""]
[null,null,null,null,null,null,null,null,null,null,null,null,null,"",false,0,""]
[null,null,null,null,null,null,null,null,null,null,null,null,null,"",false,0,""]
[null,null,null,null,null,null,null,null,null,null,null,null,null,"",false,0,""]
[null,null,null,null,null,null,null,null,null,null,null,null,null,"",false,0,""]
[null,null,null,null,null,null,null,null,null,null,null,null,null,"",false,0,""]
[null,null,null,null,null,null,null,null,null,null,null,null,null,"",false,0,""]
[null,null,null,null,null,null,null,null,null,null,null,null,null,"",false,0,""]
[null,null,null,null,null,null,null,null,null,null,null,null,null,"",false,0,""]
[null,null,null,null,null,null,null,null,null,null,null,null,null,"",false,0,""]
[null,null,null,null,null,null,null,null,null,null,null,null,null,"",false,0,""]
[null,null,null,null,null,null,null,null,null,null,null,null,null,"",false,0,""]
[null,null,null,null,null,null,null,null,null,null,null,null,null,"",false,0,""]
[null,null,null,null,null,null,null,null,null,null,null,null,null,"",false,0,""]
[null,null,null,null,null,null,null,null,null,null,null,null,null,"",false,0,""]
[null,null,null,null,null,null,null,null,null,null,null,null,null,"",false,0,""]
[null,null,null,null,null,null,null,null,null,null,null,null,null,"",false,0,""]
[null,null,null,null,null,null,null,null,null,null,null,null,null,"",false,0,""]
[null,null,null,null,null,null,null,null,null,null,null,null,null,"",false,0,""]
[null,null,null,null,null,null,null,null,null,null,null,null,null,"",false,0,""]
[null,null,null,null,null,null,null,null,null,null,null,null,null,"",false,0,""]
[null,null,null,null,null,null,null,null,null,null,null,null,null,"",false,0,""]
[null,null,null,null,null,null,null,null,null,null,null,null,null,"",false,0,""]
[null,null,null,null,null,null,null,null,null,null,null,null,null,"",false,0,""]
[null,null,null,null,null,null,null,null,null,null,null,null,null,"",false,0,""]
[null,null,null,null,null,null,null,null,null,null,null,null,null,"",false,0,""]
[null,null,null,null,null,null,null,null,null,null,null,null,null,"",false,0,""]
[null,null,null,null,null,null,null,null,null,null,null,null,null,"",false,0,""]
[null,null,null,null,null,null,null,null,null,null,null,null,null,"",false,0,""]
[null,null,null,null,null,null,null,null,null,null,null,null,null,"",false,0,""]
[null,null,null,null,null,null,null,null,null,null,null,null,null,"",false,0,""]
[null,null,null,null,null,null,null,null,null,null,null,null,null,"",false,0,""]
[null,null,null,null,null,null,null,null,null,null,null,null,null,"",false,0,""]
[null,null,null,null,null,null,null,null,null,null,null,null,null,{"$f":"IF(LEFT(H712,2)=\"bm\",H712,IF(LEFT(H712,2)=\"CA\",H712,IF(LEFT(H712,2)=\"FN\",H712,IF(LEFT(H712,2)=\"IN\",H712,IF(LEFT(H712,2)=\"MA\",H712,IF(LEFT(H712,2)=\"MF\",H712,IF(LEFT(H712,2)=\"MI\",H712,IF(LEFT(H712,2)=\"RN\",H712,IF(LEFT(H712,2)=\"YO\",H712,IF(LEFT(H712,2)=\"PN\",H712,\"\"))))))))))","v":""},{"$f":"IF(LEFT(H712,2)=\"MI\",COUNTIF(N712:N1210,N712))","v":false},{"$f":"IF(O712>=2,0,1)","v":0},{"$f":"IF(LEFT(H712,2)=\"MI\",10,IF(LEFT(H712,2)=\"CA\",5,IF(LEFT(H712,2)=\"FN\",5,IF(LEFT(H712,2)=\"IN\",5,IF(LEFT(H712,2)=\"MA\",5,IF(LEFT(H712,2)=\"MF\",5,IF(LEFT(H712,2)=\"BM\",5,IF(LEFT(H712,2)=\"RN\",5,IF(LEFT(H712,2)=\"YO\",5,IF(LEFT(H712,2)=\"PN\",5,\"\"))))))))))","v":""}]
[null,null,null,null,null,null,null,null,null,null,null,null,null,"",false,0,""]
[null,null,null,null,null,null,null,null,null,null,null,null,null,"",false,0,""]
[null,null,null,null,null,null,null,null,null,null,null,null,null,"",false,0,""]
[null,null,null,null,null,null,null,null,null,null,null,null,null,"",false,0,""]
[null,null,null,null,null,null,null,null,null,null,null,null,null,"",false,0,""]
[null,null,null,null,null,null,null,null,null,null,null,null,null,"",false,0,""]
[null,null,null,null,null,null,null,null,null,null,null,null,null,"",false,0,""]
[null,null,null,null,null,null,null,null,null,null,null,null,null,"",false,0,""]
[null,null,null,null,null,null,null,null,null,null,null,null,null,"",false,0,""]
[null,null,null,null,null,null,null,null,null,null,null,null,null,"",false,0,""]
[null,null,null,null,null,null,null,null,null,null,null,null,null,"",false,0,""]
[null,null,null,null,null,null,null,null,null,null,null,null,null,"",false,0,""]
[null,null,null,null,null,null,null,null,null,null,null,null,null,"",false,0,""]
[null,null,null,null,null,null,null,null,null,null,null,null,null,"",false,0,""]
[null,null,null,null,null,null,null,null,null,null,null,null,null,"",false,0,""]
[null,null,null,null,null,null,null,null,null,null,null,null,null,"",false,0,""]
[null,null,null,null,null,null,null,null,null,null,null,null,null,"",false,0,""]
[null,null,null,null,null,null,null,null,null,null,null,null,null,"",false,0,""]
[null,null,null,null,null,null,null,null,null,null,null,null,null,"",false,0,""]
[null,null,null,null,null,null,null,null,null,null,null,null,null,"",false,0,""]
[null,null,null,null,null,null,null,null,null,null,null,null,null,"",false,0,""]
[null,null,null,null,null,null,null,null,null,null,null,null,null,"",false,0,""]
[null,null,null,null,null,null,null,null,null,null,null,null,null,"",false,0,""]
[null,null,null,null,null,null,null,null,null,null,null,null,null,"",false,0,""]
[null,null,null,null,null,null,null,null,null,null,null,null,null,"",false,0,""]
[null,null,null,null,null,null,null,null,null,null,null,null,null,"",false,0,""]
[null,null,null,null,null,null,null,null,null,null,null,null,null,"",false,0,""]
[null,null,null,null,null,null,null,null,null,null,null,null,null,"",false,0,""]
[null,null,null,null,null,null,null,null,null,null,null,null,null,"",false,0,""]
[null,null,null,null,null,null,null,null,null,null,null,null,null,"",false,0,""]
[null,null,null,null,null,null,null,null,null,null,null,null,null,"",false,0,""]
[null,null,null,null,null,null,null,null,null,null,null,null,null,"",false,0,""]
[null,null,null,null,null,null,null,null,null,null,null,null,null,"",false,0,""]
[null,null,null,null,null,null,null,null,null,null,null,null,null,"",false,0,""]
[null,null,null,null,null,null,null,null,null,null,null,null,null,"",false,0,""]
[null,null,null,null,null,null,null,null,null,null,null,null,null,"",false,0,""]
[null,null,null,null,null,null,null,null,null,null,null,null,null,"",false,0,""]
[null,null,null,null,null,null,null,null,null,null,null,null,null,"",false,0,""]
[null,null,null,null,null,null,null,null,null,null,null,null,null,"",false,0,""]
[null,null,null,null,null,null,null,null,null,null,null,null,null,"",false,0,""]
[null,null,null,null,null,null,null,null,null,null,null,null,null,"",false,0,""]
[null,null,null,null,null,null,null,null,null,null,null,null,null,"",false,0,""]
[null,null,null,null,null,null,null,null,null,null,null,null,null,"",false,0,""]
[null,null,null,null,null,null,null,null,null,null,null,null,null,"",false,0,""]
[null,null,null,null,null,null,null,null,null,null,null,null,null,"",false,0,""]
[null,null,null,null,null,null,null,null,null,null,null,null,null,"",false,0,""]
[null,null,null,null,null,null,null,null,null,null,null,null,null,"",false,0,""]
[null,null,null,null,null,null,null,null,null,null,null,null,null,"",false,0,""]
[null,null,null,null,null,null,null,null,null,null,null,null,null,"",false,0,""]
[null,null,null,null,null,null,null,null,null,null,null,null,null,"",false,0,""]
[null,null,null,null,null,null,null,null,null,null,null,null,null,"",false,0,""]
[null,null,null,null,null,null,null,null,null,null,null,null,null,"",false,0,""]
[null,null,null,null,null,null,null,null,null,null,null,null,null,"",false,0,""]
[null,null,null,null,null,null,null,null,null,null,null,null,null,"",false,0,""]
[null,null,null,null,null,null,null,null,null,null,null,null,null,"",false,0,""]
[null,null,null,null,null,null,null,null,null,null,null,null,null,"",false,0,""]
[null,null,null,null,null,null,null,null,null,null,null,null,null,"",false,0,""]
[null,null,null,null,null,null,null,null,null,null,null,null,null,"",false,0,""]
[null,null,null,null,null,null,null,null,null,null,null,null,null,"",false,0,""]
[null,null,null,null,null,null,null,null,null,null,null,null,null,"",false,0,""]
[null,null,null,null,null,null,null,null,null,null,null,null,null,"",false,0,""]
[null,null,null,null,null,null,null,null,null,null,null,null,null,"",false,0,""]
[null,null,null,null,null,null,null,null,null,null,null,null,null,"",false,0,""]
[null,null,null,null,null,null,null,null,null,null,null,null,null,{"$f":"IF(LEFT(H776,2)=\"bm\",H776,IF(LEFT(H776,2)=\"CA\",H776,IF(LEFT(H776,2)=\"FN\",H776,IF(LEFT(H776,2)=\"IN\",H776,IF(LEFT(H776,2)=\"MA\",H776,IF(LEFT(H776,2)=\"MF\",H776,IF(LEFT(H776,2)=\"MI\",H776,IF(LEFT(H776,2)=\"RN\",H776,IF(LEFT(H776,2)=\"YO\",H776,IF(LEFT(H776,2)=\"PN\",H776,\"\"))))))))))","v":""},{"$f":"IF(LEFT(H776,2)=\"MI\",COUNTIF(N776:N1274,N776))","v":false},{"$f":"IF(O776>=2,0,1)","v":0},{"$f":"IF(LEFT(H776,2)=\"MI\",10,IF(LEFT(H776,2)=\"CA\",5,IF(LEFT(H776,2)=\"FN\",5,IF(LEFT(H776,2)=\"IN\",5,IF(LEFT(H776,2)=\"MA\",5,IF(LEFT(H776,2)=\"MF\",5,IF(LEFT(H776,2)=\"BM\",5,IF(LEFT(H776,2)=\"RN\",5,IF(LEFT(H776,2)=\"YO\",5,IF(LEFT(H776,2)=\"PN\",5,\"\"))))))))))","v":""}]
[null,null,null,null,null,null,null,null,null,null,null,null,null,"",false,0,""]
[null,null,null,null,null,null,null,null,null,null,null,null,null,"",false,0,""]
[null,null,null,null,null,null,null,null,null,null,null,null,null,"",false,0,""]
[null,null,null,null,null,null,null,null,null,null,null,null,null,"",false,0,""]
[null,null,null,null,null,null,null,null,null,null,null,null,null,"",false,0,""]
[null,null,null,null,null,null,null,null,null,null,null,null,null,"",false,0,""]
[null,null,null,null,null,null,null,null,null,null,null,null,null,"",false,0,""]
[null,null,null,null,null,null,null,null,null,null,null,null,null,"",false,0,""]
[null,null,null,null,null,null,null,null,null,null,null,null,null,"",false,0,""]
[null,null,null,null,null,null,null,null,null,null,null,null,null,"",false,0,""]
[null,null,null,null,null,null,null,null,null,null,null,null,null,"",false,0,""]
[null,null,null,null,null,null,null,null,null,null,null,null,null,"",false,0,""]
[null,null,null,null,null,null,null,null,null,null,null,null,null,"",false,0,""]
[null,null,null,null,null,null,null,null,null,null,null,null,null,"",false,0,""]
[null,null,null,null,null,null,null,null,null,null,null,null,null,"",false,0,""]
[null,null,null,null,null,null,null,null,null,null,null,null,null,"",false,0,""]
[null,null,null,null,null,null,null,null,null,null,null,null,null,"",false,0,""]
[null,null,null,null,null,null,null,null,null,null,null,null,null,"",false,0,""]
[null,null,null,null,null,null,null,null,null,null,null,null,null,"",false,0,""]
[null,null,null,null,null,null,null,null,null,null,null,null,null,"",false,0,""]
[null,null,null,null,null,null,null,null,null,null,null,null,null,"",false,0,""]
[null,null,null,null,null,null,null,null,null,null,null,null,null,"",false,0,""]
[null,null,null,null,null,null,null,null,null,null,null,null,null,"",false,0,""]
[null,null,null,null,null,null,null,null,null,null,null,null,null,"",false,0,""]
[null,null,null,null,null,null,null,null,null,null,null,null,null,"",false,0,""]
[null,null,null,null,null,null,null,null,null,null,null,null,null,"",false,0,""]
[null,null,null,null,null,null,null,null,null,null,null,null,null,"",false,0,""]
[null,null,null,null,null,null,null,null,null,null,null,null,null,"",false,0,""]
[null,null,null,null,null,null,null,null,null,null,null,null,null,"",false,0,""]
[null,null,null,null,null,null,null,null,null,null,null,null,null,"",false,0,""]
[null,null,null,null,null,null,null,null,null,null,null,null,null,"",false,0,""]
[null,null,null,null,null,null,null,null,null,null,null,null,null,"",false,0,""]
[null,null,null,null,null,null,null,null,null,null,null,null,null,"",false,0,""]
[null,null,null,null,null,null,null,null,null,null,null,null,null,"",false,0,""]
[null,null,null,null,null,null,null,null,null,null,null,null,null,"",false,0,""]
[null,null,null,null,null,null,null,null,null,null,null,null,null,"",false,0,""]
[null,null,null,null,null,null,null,null,null,null,null,null,null,"",false,0,""]
[null,null,null,null,null,null,null,null,null,null,null,null,null,"",false,0,""]
[null,null,null,null,null,null,null,null,null,null,null,null,null,"",false,0,""]
[null,null,null,null,null,null,null,null,null,null,null,null,null,"",false,0,""]
[null,null,null,null,null,null,null,null,null,null,null,null,null,"",false,0,""]
[null,null,null,null,null,null,null,null,null,null,null,null,null,"",false,0,""]
[null,null,null,null,null,null,null,null,null,null,null,null,null,"",false,0,""]
[null,null,null,null,null,null,null,null,null,null,null,null,null,"",false,0,""]
[null,null,null,null,null,null,null,null,null,null,null,null,null,"",false,0,""]
[null,null,null,null,null,null,null,null,null,null,null,null,null,"",false,0,""]
[null,null,null,null,null,null,null,null,null,null,null,null,null,"",false,0,""]
[null,null,null,null,null,null,null,null,null,null,null,null,null,"",false,0,""]
[null,null,null,null,null,null,null,null,null,null,null,null,null,"",false,0,""]
[null,null,null,null,null,null,null,null,null,null,null,null,null,"",false,0,""]
[null,null,null,null,null,null,null,null,null,null,null,null,null,"",false,0,""]
[null,null,null,null,null,null,null,null,null,null,null,null,null,"",false,0,""]
[null,null,null,null,null,null,null,null,null,null,null,null,null,"",false,0,""]
[null,null,null,null,null,null,null,null,null,null,null,null,null,"",false,0,""]
[null,null,null,null,null,null,null,null,null,null,null,null,null,"",false,0,""]
[null,null,null,null,null,null,null,null,null,null,null,null,null,"",false,0,""]
[null,null,null,null,null,null,null,null,null,null,null,null,null,"",false,0,""]
[null,null,null,null,null,null,null,null,null,null,null,null,null,"",false,0,""]
[null,null,null,null,null,null,null,null,null,null,null,null,null,"",false,0,""]
[null,null,null,null,null,null,null,null,null,null,null,null,null,"",false,0,""]
[null,null,null,null,null,null,null,null,null,null,null,null,null,"",false,0,""]
[null,null,null,null,null,null,null,null,null,null,null,null,null,"",false,0,""]
[null,null,null,null,null,null,null,null,null,null,null,null,null,"",false,0,""]
[null,null,null,null,null,null,null,null,null,null,null,null,null,{"$f":"IF(LEFT(H840,2)=\"bm\",H840,IF(LEFT(H840,2)=\"CA\",H840,IF(LEFT(H840,2)=\"FN\",H840,IF(LEFT(H840,2)=\"IN\",H840,IF(LEFT(H840,2)=\"MA\",H840,IF(LEFT(H840,2)=\"MF\",H840,IF(LEFT(H840,2)=\"MI\",H840,IF(LEFT(H840,2)=\"RN\",H840,IF(LEFT(H840,2)=\"YO\",H840,IF(LEFT(H840,2)=\"PN\",H840,\"\"))))))))))","v":""},{"$f":"IF(LEFT(H840,2)=\"MI\",COUNTIF(N840:N1338,N840))","v":false},{"$f":"IF(O840>=2,0,1)","v":0},{"$f":"IF(LEFT(H840,2)=\"MI\",10,IF(LEFT(H840,2)=\"CA\",5,IF(LEFT(H840,2)=\"FN\",5,IF(LEFT(H840,2)=\"IN\",5,IF(LEFT(H840,2)=\"MA\",5,IF(LEFT(H840,2)=\"MF\",5,IF(LEFT(H840,2)=\"BM\",5,IF(LEFT(H840,2)=\"RN\",5,IF(LEFT(H840,2)=\"YO\",5,IF(LEFT(H840,2)=\"PN\",5,\"\"))))))))))","v":""}]
[null,null,null,null,null,null,null,null,null,null,null,null,null,"",false,0,""]
[null,null,null,null,null,null,null,null,null,null,null,null,null,"",false,0,""]
[null,null,null,null,null,null,null,null,null,null,null,null,null,"",false,0,""]
[null,null,null,null,null,null,null,null,null,null,null,null,null,"",false,0,""]
[null,null,null,null,null,null,null,null,null,null,null,null,null,"",false,0,""]
[null,null,null,null,null,null,null,null,null,null,null,null,null,"",false,0,""]
[null,null,null,null,null,null,null,null,null,null,null,null,null,"",false,0,""]
[null,null,null,null,null,null,null,null,null,null,null,null,null,"",false,0,""]
[null,null,null,null,null,null,null,null,null,null,null,null,null,"",false,0,""]
[null,null,null,null,null,null,null,null,null,null,null,null,null,"",false,0,""]
[null,null,null,null,null,null,null,null,null,null,null,null,null,"",false,0,""]
[null,null,null,null,null,null,null,null,null,null,null,null,null,"",false,0,""]
[null,null,null,null,null,null,null,null,null,null,null,null,null,"",false,0,""]
[null,null,null,null,null,null,null,null,null,null,null,null,null,"",false,0,""]
[null,null,null,null,null,null,null,null,null,null,null,null,null,"",false,0,""]
[null,null,null,null,null,null,null,null,null,null,null,null,null,"",false,0,""]
[null,null,null,null,null,null,null,null,null,null,null,null,null,"",false,0,""]
[null,null,null,null,null,null,null,null,null,null,null,null,null,"",false,0,""]
[null,null,null,null,null,null,null,null,null,null,null,null,null,"",false,0,""]
[null,null,null,null,null,null,null,null,null,null,null,null,null,"",false,0,""]
[null,null,null,null,null,null,null,null,null,null,null,null,null,"",false,0,""]
[null,null,null,null,null,null,null,null,null,null,null,null,null,"",false,0,""]
[null,null,null,null,null,null,null,null,null,null,null,null,null,"",false,0,""]
[null,null,null,null,null,null,null,null,null,null,null,null,null,"",false,0,""]
[null,null,null,null,null,null,null,null,null,null,null,null,null,"",false,0,""]
[null,null,null,null,null,null,null,null,null,null,null,null,null,"",false,0,""]
[null,null,null,null,null,null,null,null,null,null,null,null,null,"",false,0,""]
[null,null,null,null,null,null,null,null,null,null,null,null,null,"",false,0,""]
[null,null,null,null,null,null,null,null,null,null,null,null,null,"",false,0,""]
[null,null,null,null,null,null,null,null,null,null,null,null,null,"",false,0,""]
[null,null,null,null,null,null,null,null,null,null,null,null,null,"",false,0,""]
[null,null,null,null,null,null,null,null,null,null,null,null,null,"",false,0,""]
[null,null,null,null,null,null,null,null,null,null,null,null,null,"",false,0,""]
[null,null,null,null,null,null,null,null,null,null,null,null,null,"",false,0,""]
[null,null,null,null,null,null,null,null,null,null,null,null,null,"",false,0,""]
[null,null,null,null,null,null,null,null,null,null,null,null,null,"",false,0,""]
[null,null,null,null,null,null,null,null,null,null,null,null,null,"",false,0,""]
[null,null,null,null,null,null,null,null,null,null,null,null,null,"",false,0,""]
[null,null,null,null,null,null,null,null,null,null,null,null,null,"",false,0,""]
[null,null,null,null,null,null,null,null,null,null,null,null,null,"",false,0,""]
[null,null,null,null,null,null,null,null,null,null,null,null,null,"",false,0,""]
[null,null,null,null,null,null,null,null,null,null,null,null,null,"",false,0,""]
[null,null,null,null,null,null,null,null,null,null,null,null,null,"",false,0,""]
[null,null,null,null,null,null,null,null,null,null,null,null,null,"",false,0,""]
[null,null,null,null,null,null,null,null,null,null,null,null,null,"",false,0,""]
[null,null,null,null,null,null,null,null,null,null,null,null,null,"",false,0,""]
[null,null,null,null,null,null,null,null,null,null,null,null,null,"",false,0,""]
[null,null,null,null,null,null,null,null,null,null,null,null,null,"",false,0,""]
[null,null,null,null,null,null,null,null,null,null,null,null,null,"",false,0,""]
[null,null,null,null,null,null,null,null,null,null,null,null,null,"",false,0,""]
[null,null,null,null,null,null,null,null,null,null,null,null,null,"",false,0,""]
[null,null,null,null,null,null,null,null,null,null,null,null,null,"",false,0,""]
[null,null,null,null,null,null,null,null,null,null,null,null,null,"",false,0,""]
[null,null,null,null,null,null,null,null,null,null,null,null,null,"",false,0,""]
[null,null,null,null,null,null,null,null,null,null,null,null,null,"",false,0,""]
[null,null,null,null,null,null,null,null,null,null,null,null,null,"",false,0,""]
[null,null,null,null,null,null,null,null,null,null,null,null,null,"",false,0,""]
[null,null,null,null,null,null,null,null,null,null,null,null,null,"",false,0,""]
[null,null,null,null,null,null,null,null,null,null,null,null,null,"",false,0,""]
[null,null,null,null,null,null,null,null,null,null,null,null,null,"",false,0,""]
[null,null,null,null,null,null,null,null,null,null,null,null,null,"",false,0,""]
[null,null,null,null,null,null,null,null,null,null,null,null,null,"",false,0,""]
[null,null,null,null,null,null,null,null,null,null,null,null,null,"",false,0,""]
[null,null,null,null,null,null,null,null,null,null,null,null,null,{"$f":"IF(LEFT(H904,2)=\"bm\",H904,IF(LEFT(H904,2)=\"CA\",H904,IF(LEFT(H904,2)=\"FN\",H904,IF(LEFT(H904,2)=\"IN\",H904,IF(LEFT(H904,2)=\"MA\",H904,IF(LEFT(H904,2)=\"MF\",H904,IF(LEFT(H904,2)=\"MI\",H904,IF(LEFT(H904,2)=\"RN\",H904,IF(LEFT(H904,2)=\"YO\",H904,IF(LEFT(H904,2)=\"PN\",H904,\"\"))))))))))","v":""},{"$f":"IF(LEFT(H904,2)=\"MI\",COUNTIF(N904:N1402,N904))","v":false},{"$f":"IF(O904>=2,0,1)","v":0},{"$f":"IF(LEFT(H904,2)=\"MI\",10,IF(LEFT(H904,2)=\"CA\",5,IF(LEFT(H904,2)=\"FN\",5,IF(LEFT(H904,2)=\"IN\",5,IF(LEFT(H904,2)=\"MA\",5,IF(LEFT(H904,2)=\"MF\",5,IF(LEFT(H904,2)=\"BM\",5,IF(LEFT(H904,2)=\"RN\",5,IF(LEFT(H904,2)=\"YO\",5,IF(LEFT(H904,2)=\"PN\",5,\"\"))))))))))","v":""}]
[null,null,null,null,null,null,null,null,null,null,null,null,null,"",false,0,""]
[null,null,null,null,null,null,null,null,null,null,null,null,null,"",false,0,""]
[null,null,null,null,null,null,null,null,null,null,null,null,null,"",false,0,""]
[null,null,null,null,null,null,null,null,null,null,null,null,null,"",false,0,""]
[null,null,null,null,null,null,null,null,null,null,null,null,null,"",false,0,""]
[null,null,null,null,null,null,null,null,null,null,null,null,null,"",false,0,""]
[null,null,null,null,null,null,null,null,null,null,null,null,null,"",false,0,""]
[null,null,null,null,null,null,null,null,null,null,null,null,null,"",false,0,""]
[null,null,null,null,null,null,null,null,null,null,null,null,null,"",false,0,""]
[null,null,null,null,null,null,null,null,null,null,null,null,null,"",false,0,""]
[null,null,null,null,null,null,null,null,null,null,null,null,null,"",false,0,""]
[null,null,null,null,null,null,null,null,null,null,null,null,null,"",false,0,""]
[null,null,null,null,null,null,null,null,null,null,null,null,null,"",false,0,""]
[null,null,null,null,null,null,null,null,null,null,null,null,null,"",false,0,""]
[null,null,null,null,null,null,null,null,null,null,null,null,null,"",false,0,""]
[null,null,null,null,null,null,null,null,null,null,null,null,null,"",false,0,""]
[null,null,null,null,null,null,null,null,null,null,null,null,null,"",false,0,""]
[null,null,null,null,null,null,null,null,null,null,null,null,null,"",false,0,""]
[null,null,null,null,null,null,null,null,null,null,null,null,null,"",false,0,""]
[null,null,null,null,null,null,null,null,null,null,null,null,null,"",false,0,""]
[null,null,null,null,null,null,null,null,null,null,null,null,null,"",false,0,""]
[null,null,null,null,null,null,null,null,null,null,null,null,null,"",false,0,""]
[null,null,null,null,null,null,null,null,null,null,null,null,null,"",false,0,""]
[null,null,null,null,null,null,null,null,null,null,null,null,null,"",false,0,""]
[null,null,null,null,null,null,null,null,null,null,null,null,null,"",false,0,""]
[null,null,null,null,null,null,null,null,null,null,null,null,null,"",false,0,""]
[null,null,null,null,null,null,null,null,null,null,null,null,null,"",false,0,""]
[null,null,null,null,null,null,null,null,null,null,null,null,null,"",false,0,""]
[null,null,null,null,null,null,null,null,null,null,null,null,null,"",false,0,""]
[null,null,null,null,null,null,null,null,null,null,null,null,null,"",false,0,""]
[null,null,null,null,null,null,null,null,null,null,null,null,null,"",false,0,""]
[null,null,null,null,null,null,null,null,null,null,null,null,null,"",false,0,""]
[null,null,null,null,null,null,null,null,null,null,null,null,null,"",false,0,""]
[null,null,null,null,null,null,null,null,null,null,null,null,null,"",false,0,""]
[null,null,null,null,null,null,null,null,null,null,null,null,null,"",false,0,""]
[null,null,null,null,null,null,null,null,null,null,null,null,null,"",false,0,""]
[null,null,null,null,null,null,null,null,null,null,null,null,null,"",false,0,""]
[null,null,null,null,null,null,null,null,null,null,null,null,null,"",false,0,""]
[null,null,null,null,null,null,null,null,null,null,null,null,null,"",false,0,""]
[null,null,null,null,null,null,null,null,null,null,null,null,null,"",false,0,""]
[null,null,null,null,null,null,null,null,null,null,null,null,null,"",false,0,""]
[null,null,null,null,null,null,null,null,null,null,null,null,null,"",false,0,""]
[null,null,null,null,null,null,null,null,null,null,null,null,null,"",false,0,""]
[null,null,null,null,null,null,null,null,null,null,null,null,null,"",false,0,""]
[null,null,null,null,null,null,null,null,null,null,null,null,null,"",false,0,""]
[null,null,null,null,null,null,null,null,null,null,null,null,null,"",false,0,""]
[null,null,null,null,null,null,null,null,null,null,null,null,null,"",false,0,""]
[null,null,null,null,null,null,null,null,null,null,null,null,null,"",false,0,""]
[null,null,null,null,null,null,null,null,null,null,null,null,null,"",false,0,""]
[null,null,null,null,null,null,null,null,null,null,null,null,null,"",false,0,""]
[null,null,null,null,null,null,null,null,null,null,null,null,null,"",false,0,""]
[null,null,null,null,null,null,null,null,null,null,null,null,null,"",false,0,""]
[null,null,null,null,null,null,null,null,null,null,null,null,null,"",false,0,""]
[null,null,null,null,null,null,null,null,null,null,null,null,null,"",false,0,""]
[null,null,null,null,null,null,null,null,null,null,null,null,null,"",false,0,""]
[null,null,null,null,null,null,null,null,null,null,null,null,null,"",false,0,""]
[null,null,null,null,null,null,null,null,null,null,null,null,null,"",false,0,""]
[null,null,null,null,null,null,null,null,null,null,null,null,null,"",false,0,""]
[null,null,null,null,null,null,null,null,null,null,null,null,null,"",false,0,""]
[null,null,null,null,null,null,null,null,null,null,null,null,null,"",false,0,""]
[null,null,null,null,null,null,null,null,null,null,null,null,null,"",false,0,""]
[null,null,null,null,null,null,null,null,null,null,null,null,null,"",false,0,""]
[null,null,null,null,null,null,null,null,null,null,null,null,null,"",false,0,""]
[null,null,null,null,null,null,null,null,null,null,null,null,null,{"$f":"IF(LEFT(H968,2)=\"bm\",H968,IF(LEFT(H968,2)=\"CA\",H968,IF(LEFT(H968,2)=\"FN\",H968,IF(LEFT(H968,2)=\"IN\",H968,IF(LEFT(H968,2)=\"MA\",H968,IF(LEFT(H968,2)=\"MF\",H968,IF(LEFT(H968,2)=\"MI\",H968,IF(LEFT(H968,2)=\"RN\",H968,IF(LEFT(H968,2)=\"YO\",H968,IF(LEFT(H968,2)=\"PN\",H968,\"\"))))))))))","v":""},{"$f":"IF(LEFT(H968,2)=\"MI\",COUNTIF(N968:N1466,N968))","v":false},{"$f":"IF(O968>=2,0,1)","v":0},{"$f":"IF(LEFT(H968,2)=\"MI\",10,IF(LEFT(H968,2)=\"CA\",5,IF(LEFT(H968,2)=\"FN\",5,IF(LEFT(H968,2)=\"IN\",5,IF(LEFT(H968,2)=\"MA\",5,IF(LEFT(H968,2)=\"MF\",5,IF(LEFT(H968,2)=\"BM\",5,IF(LEFT(H968,2)=\"RN\",5,IF(LEFT(H968,2)=\"YO\",5,IF(LEFT(H968,2)=\"PN\",5,\"\"))))))))))","v":""}]
[null,null,null,null,null,null,null,null,null,null,null,null,null,"",false,0,""]
[null,null,null,null,null,null,null,null,null,null,null,null,null,"",false,0,""]
[null,null,null,null,null,null,null,null,null,null,null,null,null,"",false,0,""]
[null,null,null,null,null,null,null,null,null,null,null,null,null,"",false,0,""]
[null,null,null,null,null,null,null,null,null,null,null,null,null,"",false,0,""]
[null,null,null,null,null,null,null,null,null,null,null,null,null,"",false,0,""]
[null,null,null,null,null,null,null,null,null,null,null,null,null,"",false,0,""]
[null,null,null,null,null,null,null,null,null,null,null,null,null,"",false,0,""]
[null,null,null,null,null,null,null,null,null,null,null,null,null,"",false,0,""]
[null,null,null,null,null,null,null,null,null,null,null,null,null,"",false,0,""]
[null,null,null,null,null,null,null,null,null,null,null,null,null,"",false,0,""]
[null,null,null,null,null,null,null,null,null,null,null,null,null,"",false,0,""]
[null,null,null,null,null,null,null,null,null,null,null,null,null,"",false,0,""]
[null,null,null,null,null,null,null,null,null,null,null,null,null,"",false,0,""]
[null,null,null,null,null,null,null,null,null,null,null,null,null,"",false,0,""]
[null,null,null,null,null,null,null,null,null,null,null,null,null,"",false,0,""]
[null,null,null,null,null,null,null,null,null,null,null,null,null,"",false,0,""]
[null,null,null,null,null,null,null,null,null,null,null,null,null,"",false,0,""]
[null,null,null,null,null,null,null,null,null,null,null,null,null,"",false,0,""]
[null,null,null,null,null,null,null,null,null,null,null,null,null,"",false,0,""]
[null,null,null,null,null,null,null,null,null,null,null,null,null,"",false,0,""]
[null,null,null,null,null,null,null,null,null,null,null,null,null,"",false,0,""]
[null,null,null,null,null,null,null,null,null,null,null,null,null,"",false,0,""]
[null,null,null,null,null,null,null,null,null,null,null,null,null,"",false,0,""]
[null,null,null,null,null,null,null,null,null,null,null,null,null,"",false,0,""]
[null,null,null,null,null,null,null,null,null,null,null,null,null,"",false,0,""]
[null,null,null,null,null,null,null,null,null,null,null,null,null,"",false,0,""]
[null,null,null,null,null,null,null,null,null,null,null,null,null,"",false,0,""]
[null,null,null,null,null,null,null,null,null,null,null,null,null,"",false,0,""]
[null,null,null,null,null,null,null,null,null,null,null,null,null,"",false,0,""]
[null,null,null,null,null,null,null,null,null,null,null,null,null,"",false,0,""]
[null,null,null,null,null,null,null,null,null,null,null,null,null,"",false,0,""]
[null,null,null,null,null,null,null,null,null,null,null,null,null,"",false,0,""]
[null,null,null,null,null,null,null,null,null,null,null,null,null,"",false,0,""]
[null,null,null,null,null,null,null,null,null,null,null,null,null,"",false,0,""]
[null,null,null,null,null,null,null,null,{"$f":"VLOOKUP(H1004,#REF!,2,FALSE)","v":{"$error":"#REF!"}},null,null,null,null,"",false,0,""]

{"sheet":"Info","index":1,"n_rows":99,"n_cols":14,"rows_kept":99,"cut":false,"hidden":false,"merged":[[280,0,280,8],[281,0,281,8],[282,0,282,8],[283,0,283,8],[284,0,284,8],[285,0,285,8],[274,0,274,8],[275,0,275,8],[276,0,276,8],[277,0,277,8],[278,0,278,8],[279,0,279,8],[268,0,268,8],[269,0,269,8],[270,0,270,8],[271,0,271,8],[272,0,272,8],[273,0,273,8],[262,0,262,8],[263,0,263,8],[264,0,264,8],[265,0,265,8],[266,0,266,8],[267,0,267,8],[256,0,256,8],[257,0,257,8],[258,0,258,8],[259,0,259,8],[260,0,260,8],[261,0,261,8],[250,0,250,8],[251,0,251,8],[252,0,252,8],[253,0,253,8],[254,0,254,8],[255,0,255,8],[244,0,244,8],[245,0,245,8],[246,0,246,8],[247,0,247,8],[248,0,248,8],[249,0,249,8],[238,0,238,8],[239,0,239,8],[240,0,240,8],[241,0,241,8],[242,0,242,8],[243,0,243,8],[232,0,232,8],[233,0,233,8],[234,0,234,8],[235,0,235,8],[236,0,236,8],[237,0,237,8],[226,0,226,8],[227,0,227,8],[228,0,228,8],[229,0,229,8],[230,0,230,8],[231,0,231,8],[220,0,220,8],[221,0,221,8],[222,0,222,8],[223,0,223,8],[224,0,224,8],[225,0,225,8],[214,0,214,8],[215,0,215,8],[216,0,216,8],[217,0,217,8],[218,0,218,8],[219,0,219,8],[208,0,208,8],[209,0,209,8],[210,0,210,8],[211,0,211,8],[212,0,212,8],[213,0,213,8],[202,0,202,8],[203,0,203,8],[204,0,204,8],[205,0,205,8],[206,0,206,8],[207,0,207,8],[196,0,196,8],[197,0,197,8],[198,0,198,8],[199,0,199,8],[200,0,200,8],[201,0,201,8],[190,0,190,8],[191,0,191,8],[192,0,192,8],[193,0,193,8],[194,0,194,8],[195,0,195,8],[184,0,184,8],[185,0,185,8],[186,0,186,8],[187,0,187,8],[188,0,188,8],[189,0,189,8],[178,0,178,8],[179,0,179,8],[180,0,180,8],[181,0,181,8],[182,0,182,8],[183,0,183,8],[172,0,172,8],[173,0,173,8],[174,0,174,8],[175,0,175,8],[176,0,176,8],[177,0,177,8],[166,0,166,8],[167,0,167,8],[168,0,168,8],[169,0,169,8],[170,0,170,8],[171,0,171,8],[160,0,160,8],[161,0,161,8],[162,0,162,8],[163,0,163,8],[164,0,164,8],[165,0,165,8],[154,0,154,8],[155,0,155,8],[156,0,156,8],[157,0,157,8],[158,0,158,8],[159,0,159,8],[148,0,148,8],[149,0,149,8],[150,0,150,8],[151,0,151,8],[152,0,152,8],[153,0,153,8],[142,0,142,8],[143,0,143,8],[144,0,144,8],[145,0,145,8],[146,0,146,8],[147,0,147,8],[139,0,139,8],[139,9,139,17],[140,0,140,8],[140,9,140,17],[141,0,141,8],[141,9,141,17],[136,0,136,8],[136,9,136,17],[137,0,137,8],[137,9,137,17],[138,0,138,8],[138,9,138,17],[133,0,133,8],[133,9,133,17],[134,0,134,8],[134,9,134,17],[135,0,135,8],[135,9,135,17],[130,0,130,8],[130,9,130,17],[131,0,131,8],[131,9,131,17],[132,0,132,8],[132,9,132,17],[127,0,127,8],[127,9,127,17],[128,0,128,8],[128,9,128,17],[129,0,129,8],[129,9,129,17],[124,0,124,8],[124,9,124,17],[125,0,125,8],[125,9,125,17],[126,0,126,8],[126,9,126,17],[121,0,121,8],[121,9,121,17],[122,0,122,8],[122,9,122,17],[123,0,123,8],[123,9,123,17],[118,0,118,8],[118,9,118,17],[119,0,119,8],[119,9,119,17],[120,0,120,8],[120,9,120,17],[115,0,115,8],[115,9,115,17],[116,0,116,8],[116,9,116,17],[117,0,117,8],[117,9,117,17],[112,0,112,8],[112,9,112,17],[113,0,113,8],[113,9,113,17],[114,0,114,8],[114,9,114,17],[109,0,109,8],[109,9,109,17],[110,0,110,8],[110,9,110,17],[111,0,111,8],[111,9,111,17],[106,0,106,8],[106,9,106,17],[107,0,107,8],[107,9,107,17],[108,0,108,8],[108,9,108,17],[103,0,103,8],[103,9,103,17],[104,0,104,8],[104,9,104,17],[105,0,105,8],[105,9,105,17],[100,0,100,8],[100,9,100,17],[101,0,101,8],[101,9,101,17],[102,0,102,8],[102,9,102,17],[97,0,97,8],[97,9,97,17],[98,0,98,8],[98,9,98,17],[99,0,99,8],[99,9,99,17],[94,0,94,8],[94,9,94,17],[95,0,95,8],[95,9,95,17],[96,0,96,8],[96,9,96,17],[91,0,91,8],[91,9,91,17],[92,0,92,8],[92,9,92,17],[93,0,93,8],[93,9,93,17],[88,0,88,8],[88,9,88,17],[89,0,89,8],[89,9,89,17],[90,0,90,8],[90,9,90,17],[84,0,84,8],[84,9,84,17],[85,0,85,8],[85,9,85,17],[86,9,86,17],[87,0,87,8],[87,9,87,17],[81,0,81,8],[81,9,81,17],[82,0,82,8],[82,9,82,17],[83,0,83,8],[83,9,83,17],[77,0,77,8],[77,9,77,17],[78,0,78,8],[78,9,78,17],[79,9,79,17],[80,0,80,8],[80,9,80,17],[74,0,74,8],[74,9,74,17],[75,0,75,8],[75,9,75,17],[76,0,76,8],[76,9,76,17],[71,0,71,8],[71,9,71,17],[72,0,72,8],[72,9,72,17],[73,0,73,8],[73,9,73,17],[68,0,68,8],[68,9,68,17],[69,0,69,8],[69,9,69,17],[70,0,70,8],[70,9,70,17],[65,0,65,8],[65,9,65,17],[66,0,66,8],[66,9,66,17],[67,0,67,8],[67,9,67,17],[62,0,62,8],[62,9,62,17],[63,0,63,8],[63,9,63,17],[64,0,64,8],[64,9,64,17],[59,0,59,8],[59,9,59,17],[60,0,60,8],[60,9,60,17],[61,0,61,8],[61,9,61,17],[56,0,56,8],[56,9,56,17],[57,0,57,8],[57,9,57,17],[58,0,58,8],[58,9,58,17],[53,0,53,8],[53,9,53,17],[54,0,54,8],[54,9,54,17],[55,0,55,8],[55,9,55,17],[50,0,50,8],[50,9,50,17],[51,0,51,8],[51,9,51,17],[52,0,52,8],[52,9,52,17],[47,0,47,8],[47,9,47,17],[48,0,48,8],[48,9,48,17],[49,0,49,8],[49,9,49,17],[43,0,43,8],[43,9,43,17],[45,0,45,8],[45,9,45,17],[46,0,46,8],[46,9,46,17],[40,0,40,8],[40,9,40,17],[41,0,41,8],[41,9,41,17],[42,0,42,8],[42,9,42,17],[37,0,37,8],[37,9,37,17],[38,0,38,8],[38,9,38,17],[39,0,39,8],[39,9,39,17],[33,0,33,8],[33,9,33,17],[34,0,34,8],[34,9,34,17],[35,9,35,17],[36,0,36,8],[36,9,36,17],[30,0,30,8],[30,9,30,17],[31,0,31,8],[31,9,31,17],[32,0,32,8],[32,9,32,17],[27,0,27,8],[27,9,27,17],[28,0,28,8],[28,9,28,17],[29,0,29,8],[29,9,29,17],[24,0,24,8],[24,9,24,17],[25,0,25,8],[25,9,25,17],[26,0,26,8],[26,9,26,17]]}
[]
[]
[null,null,null,null,"I N F O R M A Z I O N I",null,null,null,null,null,null,null,null,"I N F O R M A T I O N"]
[]
[null,null,null,null,"A.R.M.I",null,null,null,null,null,null,null,null,"A.R.M.I."]
[null,null,null,null,"non assume alcuna responsabilità",null,null,null,null,null,null,null,null,"will not be responsible"]
[null,null,null,null,"per eventuali danni causati per",null,null,null,null,null,null,null,null,"for any loss or damage whatsoever"]
[null,null,null,null,"l'utilizzo di questo file",null,null,null,null,null,null,null,null,"caused resulting from usage of the file."]
[]
[]
[]
[]
[]
[null,null,null,null,"sviluppato su licenza GNU GPL vedi:",null,null,null,null,null,null,null,null,"developed on GNU GPL see:"]
[null,null,null,null,"www.gnu.org",null,null,null,null,null,null,null,null,"www.gnu.org"]
[null,null,null,null,"quando richiesta password =",null,null,null,null,null,null,null,null,"when required password ="]
[null,null,null,null,"contest",null,null,null,null,null,null,null,null,"contest"]
[]
[]
[null,null,null,null,"ITALIAN NAVY CONTEST",null,null,null,null,null,null,null,null,"ITALIAN NAVY CONTEST"]
[]
[null,null,null,null,"Registro di Stazione",null,null,null,null,null,null,null,null,"Log Station"]
[null,null,null,null,"ISTRUZIONI",null,null,null,null,null,null,null,null,"INSTRUCTION'S"]
[]
["All'avvio del file excel si aprirà sempre il foglio LOG anche se si è chiuso su altro",null,null,null,null,null,null,null,null,"The excel file will always open the LOG sheet, even if it has been previously closed"]
["foglio.(Office 2007 o superiore o salvare come cartella lavoro 97/2003)",null,null,null,null,null,null,null,null,"on another sheet. (Office 2007 or higher or save as a workbook 97/2003)"]
[]
["La prima volta che viene aperto il file, essendo i dati stazione ",null,null,null,null,null,null,null,null,"                                     The first time you open the file, as the station data are empty, "]
["vuoti esce l'avviso già predisposto sul tasto NO che cliccato ",null,null,null,null,null,null,null,null,"                                      a warning message is set up on the NO button, clicking "]
["andrà nel foglio \"INFO\" dove trovate la liberatoria per gli autori, ",null,null,null,null,null,null,null,null,"                                      you will be directed to the \"INFO\" sheet, where you will find the"]
["il tipo di licenza, la password di accesso ai fogli e queste brevi",null,null,null,null,null,null,null,null,"                                      release to the authors, the type of license, the administrator"]
["istruzioni. Scegliendo il tasto \"SI\" confermate di aver letto tutte",null,null,null,null,null,null,null,null,"                                      password for modifying the sheets and these brief"]
["le informazioni quindi si andrà direttamente al foglio del \"LOG\". ",null,null,null,null,null,null,null,null,"                                      instructions. Choose \"YES\" to confirm you read all information"]
["Dal foglio \"LOG\" si potrà andare al foglio \"INFO\" cliccando la",null,null,null,null,null,null,null,null,"                                      end  you will do directly to the \"LOG\" sheet."]
["scheda Info e viceversa.",null,null,null,null,null,null,null,null,"                                      From the \"LOG\" sheet  you can go to the \"INFO\" sheet by"]
[null,null,null,null,null,null,null,null,null,"                                     clicking the Info tab and  vice versa."]
["Una volta inserito il nominativo di stazione al prossimo avvio l'avviso non esce.",null,null,null,null,null,null,null,null," After entering the name of the station, for the  following openings, the warning "]
[null,null,null,null,null,null,null,null,null,"message will not appear."]
["Nel foglio LOG andremo ad inserire i dati a fianco",null,null,null,null,null,null,null,null,"                                                          In the LOG sheet we will enter the data for each"]
["le varie voci come \"NOMINATIVO di STAZIONE\"-",null,null,null,null,null,null,null,null,"                                                          item, such as  Station's Call, Operators's Name."]
["\"NOME DI BATTESIMO DELL'OPERATORE\" -",null,null,null,null,null,null,null,null,"                                                         Category from the drop-dowen box choose SSB/CW "]
["\"CATEGORIA\"  nella finestra a discesa si sceglierà",null,null,null,null,null,null,null,null,"                                                          that will be displayed automatically."]
["una delle due categorie (SSB-CW) previste",null,null,null,null,null,null,null,null,"                                                           In the second cell (orange) you will write your                      "]
["che verranno automaticamente mostrate.",null,null,null,null,null,null,null,null,"                                                           NAVAL Number.                                               "]
["Nella seconda cella scriverete il vostro NAVAL Number."]
["E' stata anche predisposta una cella bianca nella"]
["quale si potranno scrivere eventuali note per il"]
["Manager"]
["Sotto la casella \"SCEGLI-CHOOSE\" si puo' scegliere",null,null,null,null,null,null,null,null,"                                                         Under the box \"SCEGLI-CHOOSE\" you can choose"]
["nella finestra a discesa la lingua per l'intestazionie",null,null,null,null,null,null,null,null,"                                                         the language."]
["delle colonne  ITALIAN(o) o ENGLISH (Inglese)."]
["La riga nera invece darà tutte le informazioni circa i",null,null,null,null,null,null,null,null,"                                                          The black line gives all information abaut the"]
["QSO e il punteggio aggiornandosi automaticamente ad ogni QSO inserito.",null,null,null,null,null,null,null,null," QSO and score, automatically adapting to each QSO inserted."]
[]
["Vediamo ora il \"LOG\" in ogni sua colonna:",null,null,null,null,null,null,null,null,"Description of the tab LOG:"]
["QSO# : (colonna BLOCCATA). Automaticamente apparirà il numero progressivo",null,null,null,null,null,null,null,null,"QSO#: (this column is LOCKED), the serial number of QSO appears automatically"]
["del QSO inserendo il CALL nella colonna Nominativo;",null,null,null,null,null,null,null,null,"inserting the CALL in the NAME column;"]
["DATA: potete inserirla come volete non è richiesto un formato particolare;",null,null,null,null,null,null,null,null,"DATE: the date does not required a particolar format;"]
["ORA: come per la DATA;",null,null,null,null,null,null,null,null,"TIME (UTC): as for the DATE column above;"]
["BANDA (colonna BLOCCATA). Automaticamente apparià la banda inserendo la",null,null,null,null,null,null,null,null,"BAND: (this column is LOCKED), the band appears automatically by entering the"]
["frequenza nell'apposita colonna;",null,null,null,null,null,null,null,null,"frequency in the appropriate column;"]
["NOMINATIVO: nominativo della stazione collegata (SOLO e SOLTANTO il ",null,null,null,null,null,null,null,null,"CALL: requires only the simple name of the connected station without attributes"]
["semplice nominativo senza attributi vicino tipo /P, /qrp ecc.ecc.).",null,null,null,null,null,null,null,null,"like type - /P - /qrp - /MM - etc. (IT9MRM is ok, IT9MRM/P is wrong);"]
["RST: inserire il solo rapporto (59/599);",null,null,null,null,null,null,null,null,"RST: insert only the report (59/599);"]
["N°PROGR/ASS. + N°: numero progressivo dato dalla stazione Indipendente o sigla",null,null,null,null,null,null,null,null,"PROGR. N°/ASS.+N°: progressive number given by the Indipendent or letters"]
["associazione naval seguita dal numero associativo .",null,null,null,null,null,null,null,null,"Station Naval Association followed by the membership number;"]
["FREQUENZA:  inserire la frequenza di lavoro in modo da avere la relativa banda;",null,null,null,null,null,null,null,null,"FREQUENCY: insert the operating frequency in order to have its band;"]
["MODO:  finestra a discesa cui scegliere il modo operativo;",null,null,null,null,null,null,null,null,"MODE: the drop-down menu to choose the operating mode;"]
["NOTE: inserimento di eventuale nota relativa al QSO effettuato.",null,null,null,null,null,null,null,null,"NOTES: enter notes on the QSO made."]
[]
["           NOTE IMPORTANTI",null,null,null,null,null,null,null,null,"                                                                                      IMPORTANT NOTE"]
["Muoversi con il tasto \"TAB\" che andrà",null,null,null,null,null,null,null,null,"                                                                           To move through the cells of the file."]
["solo nelle celle libere saltando le",null,null,null,null,null,null,null,null,"                                                                           Use the \"TAB\" key, doing so loched cells"]
["bloccate.",null,null,null,null,null,null,null,null,"                                                                           will be jumped."]
[]
["Anche se vi è stata data la password",null,null,null,null,null,null,null,null,"                                                                           Even if you know the password for "]
["di accesso ai fogli NON USATELA",null,null,null,null,null,null,null,null,"                                                                           modifying sheets, please DO NOT USE IT,"]
["potreste rovinare qualche cella per",null,null,null,null,null,null,null,null,"                                                                           you might mistakenly change cell "]
["cui il file diventa inservibile.",null,null,null,null,null,null,null,null,"                                                                           damaging the file."]
[]
["Inserendo i dati in maiuscolo o in ",null,null,null,null,null,null,null,null,"                                                                            By entering the data to uppercase or "]
["minuscolo si ha sempre:",null,null,null,null,null,null,null,null,"                                                                            lowercase,  you always:  station name,"]
["stazione, nome, nominativi, ass.+N°",null,null,null,null,null,null,null,null,"                                                                            operator, category letter, Call,  Progr."]
["in \"MAIUSCOLO\", scrivi al manager e",null,null,null,null,null,null,null,null,"                                                                            N°/Ass.+N° \"UPPERCASE\", write to "]
["modo in \"MINUSCOLO\", note la prima",null,null,null,null,null,null,null,null,"                                                                            manager and notes \"LOWERCASE\"."]
["lettera GRANDE il resto PICCOLO."]
[]
["Una volta finito il diploma fatene una",null,null,null,null,null,null,null,null,"                                                                            Once you finisced the award make a"]
["copia e rinominatela con il vostro",null,null,null,null,null,null,null,null,"                                                                            copy and renameit with your sending"]
["nominativo di stazione inviandola a:",null,null,null,null,null,null,null,null,"station name to:"]
["contest@assoradiomarinai.it",null,null,null,null,null,null,null,null,"contest@assoradiomarinai.it"]
["come oggetto:",null,null,null,null,null,null,null,null,"as an object"]
["IT NAVY CONTEST 2022 - [Vostro NOMINATIVO]",null,null,null,null,null,null,null,null,"IT NAVY CONTEST 2022 - [Your CALL]"]
[]
["Sarà cura del Manager lavorare il \"LOG\" controllando tutti i dati e inserendolo nella",null,null,null,null,null,null,null,null,"The Manager will carefully work the \"LOG\" checking all tha data and inserting it in"]
["apposita classifica.",null,null,null,null,null,null,null,null,"the appropriate classification."]
["Logicamente il punteggio da voi ottenuto dal vostro log sarà solo e soltando utile",null,null,null,null,null,null,null,null,"The score obtained from your log will be just yours, the final score is the one done"]
["per la vostra conoscenza, restando valido a tutti gli effetti il punteggio inserito",null,null,null,null,null,null,null,null,"by the Manager with its ranking."]
["dal Manager nella relativa graduatoria."]